Workbook

Sheet Bloomberg data (hent)
A1: 2019-04-03 | B1: Nykredit YTM | D1: Nykredit Dur | F1: DK 6år | H1: DK 7år | J1: FR 4år | L1: FR 5år | N1: DE 6år | P1: DE 7år | R1: HU 5år | T1: HU 6år | V1: IE 9år | X1: IE 10år | Z1: IT 7år | AB1: IT 8år | AD1: LU 5år | AF1: LU 6år | AH1: NL 10år | AJ1: NL 15år | AL1: PL 4år | AN1: PL 5år | AP1: ES 6år | AR1: ES 7år | AT1: SE 6år | AV1: SE 7år | AX1: UK 10år | AZ1: UK 15år | BB1: US 4år | BD1: US 5år
A2: Dato | B2: Ticker | C2: Ticker | D2: =C2 -> Ticker | E2: Ticker | F2: =E2 -> Ticker | G2: Ticker | H2: =G2 -> Ticker | I2: Ticker | J2: =I2 -> Ticker | K2: Ticker | L2: =K2 -> Ticker | M2: Ticker | N2: =M2 -> Ticker | O2: Ticker | P2: =O2 -> Ticker | Q2: Ticker | R2: =Q2 -> Ticker | S2: Ticker | T2: =S2 -> Ticker | U2: Ticker | V2: =U2 -> Ticker | W2: Ticker | X2: Ticker | Y2: Ticker | Z2: Ticker | AA2: Ticker | AB2: =AA2 -> Ticker | AC2: Ticker | AD2: =AC2 -> Ticker | AE2: Ticker | AF2: =AE2 -> Ticker | AG2: Ticker | AH2: =AG2 -> Ticker | AI2: Ticker | AJ2: =AI2 -> Ticker | AK2: Ticker | AL2: =AK2 -> Ticker | AM2: Ticker | AN2: =AM2 -> Ticker | AO2: Ticker | AP2: =AO2 -> Ticker | AQ2: Ticker | AR2: =AQ2 -> Ticker | AS2: Ticker | AT2: =AS2 -> Ticker | AU2: Ticker | AV2: =AU2 -> Ticker | AW2: Ticker | AX2: =AW2 -> Ticker | AY2: Ticker | AZ2: =AY2 -> Ticker | BA2: Ticker | BB2: =BA2 -> Ticker | BC2: Ticker | BD2: =BC2 -> Ticker
A3: =_xll.BDH(B2,"PX_LAST",$A$1,"","cols=2;rows=20") ->  | C3: =_xll.BDH(C2,"PX_LAST",$A$1,"","cols=2;rows=20") ->  | E3: =_xll.BDH(E2,"PX_LAST",$A$1,"","cols=2;rows=22") ->  | G3: =_xll.BDH(G2,"PX_LAST",$A$1,"","cols=2;rows=22") ->  | I3: =_xll.BDH(I2,"PX_LAST",$A$1,"","cols=2;rows=22") ->  | K3: =_xll.BDH(K2,"PX_LAST",$A$1,"","cols=2;rows=22") ->  | M3: =_xll.BDH(M2,"PX_LAST",$A$1,"","cols=2;rows=22") ->  | O3: =_xll.BDH(O2,"PX_LAST",$A$1,"","cols=2;rows=22") ->  | Q3: =_xll.BDH(Q2,"PX_LAST",$A$1,"","cols=2;rows=22") ->  | S3: =_xll.BDH(S2,"PX_LAST",$A$1,"","cols=2;rows=22") ->  | U3: =_xll.BDH(U2,"PX_LAST",$A$1,"","cols=2;rows=22") ->  | W3: =_xll.BDH(W2,"PX_LAST",$A$1,"","cols=2;rows=22") ->  | Y3: =_xll.BDH(Y2,"PX_LAST",$A$1,"","cols=2;rows=22") ->  | AA3: =_xll.BDH(AA2,"PX_LAST",$A$1,"","cols=2;rows=22") ->  | AC3: =_xll.BDH(AC2,"PX_LAST",$A$1,"","cols=2;rows=22") ->  | AE3: =_xll.BDH(AE2,"PX_LAST",$A$1,"","cols=2;rows=22") ->  | AG3: =_xll.BDH(AG2,"PX_LAST",$A$1,"","cols=2;rows=22") ->  | AI3: =_xll.BDH(AI2,"PX_LAST",$A$1,"","cols=2;rows=22") ->  | AK3: =_xll.BDH(AK2,"PX_LAST",$A$1,"","cols=2;rows=22") ->  | AM3: =_xll.BDH(AM2,"PX_LAST",$A$1,"","cols=2;rows=22") ->  | AO3: =_xll.BDH(AO2,"PX_LAST",$A$1,"","cols=2;rows=22") ->  | AQ3: =_xll.BDH(AQ2,"PX_LAST",$A$1,"","cols=2;rows=22") ->  | AS3: =_xll.BDH(AS2,"PX_LAST",$A$1,"","cols=2;rows=22") ->  | AU3: =_xll.BDH(AU2,"PX_LAST",$A$1,"","cols=2;rows=22") ->  | AW3: =_xll.BDH(AW2,"PX_LAST",$A$1,"","cols=2;rows=22") ->  | AY3: =_xll.BDH(AY2,"PX_LAST",$A$1,"","cols=2;rows=22") ->  | BA3: =_xll.BDH(BA2,"PX_LAST",$A$1,"","cols=2;rows=22") ->  | BC3: =_xll.BDH(BC2,"PX_LAST",$A$1,"","cols=2;rows=22") ->  | BK3: =AND(A3=C3,C3=E3,E3=G3,G3=I3,I3=K3,K3=M3,M3=O3,O3=Q3,Q3=S3,S3=U3,U3=W3,W3=Y3,Y3=AA3,AA3=AC3,AC3=AE3,AE3=AG3,AG3=AI3,AI3=AK3,AK3=AM3,AM3=AO3,AO3=AQ3,AQ3=AS3,AS3=AU3,AU3=AW3,AW3=AY3,AY3=BA3,BA3=BC3) -> 
A4: 2019-04-04 | C4: 2019-04-04 | E4: 2019-04-04 | G4: 2019-04-04 | I4: 2019-04-04 | K4: 2019-04-04 | M4: 2019-04-04 | O4: 2019-04-04 | Q4: 2019-04-04 | S4: 2019-04-04 | U4: 2019-04-04 | W4: 2019-04-04 | Y4: 2019-04-04 | AA4: 2019-04-04 | AC4: 2019-04-04 | AE4: 2019-04-04 | AG4: 2019-04-04 | AI4: 2019-04-04 | AK4: 2019-04-04 | AM4: 2019-04-04 | AO4: 2019-04-04 | AQ4: 2019-04-04 | AS4: 2019-04-04 | AU4: 2019-04-04 | AW4: 2019-04-04 | AY4: 2019-04-04 | BA4: 2019-04-04 | BC4: 2019-04-04 | BK4: =AND(A4=C4,C4=E4,E4=G4,G4=I4,I4=K4,K4=M4,M4=O4,O4=Q4,Q4=S4,S4=U4,U4=W4,W4=Y4,Y4=AA4,AA4=AC4,AC4=AE4,AE4=AG4,AG4=AI4,AI4=AK4,AK4=AM4,AM4=AO4,AO4=AQ4,AQ4=AS4,AS4=AU4,AU4=AW4,AW4=AY4,AY4=BA4,BA4=BC4) -> TRUE | BL4: datotjek
BK9: ='[1]basiskurve raadata'!AP9 -> 7
BK10: =IF(OR(MAX(B20,D20,F20,H20,J20,L20,N20,P20,R20,T20,V20,X20,Z20,AB20,AD20,AF20,AH20,AJ20,AL20,AN20,AP20,AR20,AT20,AV20,AX20,AZ20,BB20,BD20,BF20,BH20)>BK9/100,MIN(B20,D20,F20,H20,J20,L20,N20,P20,R20,T20,V20,X20,Z20,AB20,AD20,AF20,AH20,AJ20,AL20,AN20,AP20,AR20,AT20,AV20,AX20,AZ20,BB20,BD20,BF20,BH20)<-BK9/100),FALSE,TRUE) -> TRUE
BK12: Nykredit fejl
BK13: =IF(AND(A4<>C4,C4=E4,E4=G4,G4=I4,I4=K4,K4=M4,M4=O4,O4=Q4,Q4=S4,S4=U4,U4=W4,W4=Y4,Y4=AA4,AA4=AC4,AC4=AE4,AE4=AG4,AG4=AI4,AI4=AK4,AK4=AM4,AM4=AO4,AO4=AQ4,AQ4=AS4,AS4=AU4,AU4=AW4,AW4=AY4,AY4=BA4,BA4=BC4)=FALSE,TRUE,FALSE) -> TRUE

Sheet Bloomberg data
A1: ='Bloomberg data (hent)'!A1 -> 2019-04-03 | B1: ='Bloomberg data (hent)'!B1 -> Nykredit YTM | C1: ='Bloomberg data (hent)'!C1 -> 0 | D1: ='Bloomberg data (hent)'!D1 -> Nykredit Dur | E1: ='Bloomberg data (hent)'!E1 -> 0 | F1: ='Bloomberg data (hent)'!F1 -> DK 6år | G1: ='Bloomberg data (hent)'!G1 -> 0 | H1: ='Bloomberg data (hent)'!H1 -> DK 7år | I1: ='Bloomberg data (hent)'!I1 -> 0 | J1: ='Bloomberg data (hent)'!J1 -> FR 4år | K1: ='Bloomberg data (hent)'!K1 -> 0 | L1: ='Bloomberg data (hent)'!L1 -> FR 5år | M1: ='Bloomberg data (hent)'!M1 -> 0 | N1: ='Bloomberg data (hent)'!N1 -> DE 6år | O1: ='Bloomberg data (hent)'!O1 -> 0 | P1: ='Bloomberg data (hent)'!P1 -> DE 7år | Q1: ='Bloomberg data (hent)'!Q1 -> 0 | R1: ='Bloomberg data (hent)'!R1 -> HU 5år | S1: ='Bloomberg data (hent)'!S1 -> 0 | T1: ='Bloomberg data (hent)'!T1 -> HU 6år | U1: ='Bloomberg data (hent)'!U1 -> 0 | V1: ='Bloomberg data (hent)'!V1 -> IE 9år | W1: ='Bloomberg data (hent)'!W1 -> 0 | X1: ='Bloomberg data (hent)'!X1 -> IE 10år | Y1: ='Bloomberg data (hent)'!Y1 -> 0 | Z1: ='Bloomberg data (hent)'!Z1 -> IT 7år | AA1: ='Bloomberg data (hent)'!AA1 -> 0 | AB1: ='Bloomberg data (hent)'!AB1 -> IT 8år | AC1: ='Bloomberg data (hent)'!AC1 -> 0 | AD1: ='Bloomberg data (hent)'!AD1 -> LU 5år | AE1: ='Bloomberg data (hent)'!AE1 -> 0 | AF1: ='Bloomberg data (hent)'!AF1 -> LU 6år | AG1: ='Bloomberg data (hent)'!AG1 -> 0 | AH1: ='Bloomberg data (hent)'!AH1 -> NL 10år | AI1: ='Bloomberg data (hent)'!AI1 -> 0 | AJ1: ='Bloomberg data (hent)'!AJ1 -> NL 15år | AK1: ='Bloomberg data (hent)'!AK1 -> 0 | AL1: ='Bloomberg data (hent)'!AL1 -> PL 4år | AM1: ='Bloomberg data (hent)'!AM1 -> 0 | AN1: ='Bloomberg data (hent)'!AN1 -> PL 5år | AO1: ='Bloomberg data (hent)'!AO1 -> 0 | AP1: ='Bloomberg data (hent)'!AP1 -> ES 6år | AQ1: ='Bloomberg data (hent)'!AQ1 -> 0 | AR1: ='Bloomberg data (hent)'!AR1 -> ES 7år | AS1: ='Bloomberg data (hent)'!AS1 -> 0 | AT1: ='Bloomberg data (hent)'!AT1 -> SE 6år | AU1: ='Bloomberg data (hent)'!AU1 -> 0 | AV1: ='Bloomberg data (hent)'!AV1 -> SE 7år | AW1: ='Bloomberg data (hent)'!AW1 -> 0 | AX1: ='Bloomberg data (hent)'!AX1 -> UK 10år | AY1: ='Bloomberg data (hent)'!AY1 -> 0 | AZ1: ='Bloomberg data (hent)'!AZ1 -> UK 15år | BA1: ='Bloomberg data (hent)'!BA1 -> 0 | BB1: ='Bloomberg data (hent)'!BB1 -> US 4år | BC1: ='Bloomberg data (hent)'!BC1 -> 0 | BD1: ='Bloomberg data (hent)'!BD1 -> US 5år | BE1: ='Bloomberg data (hent)'!BE1 -> 0 | BF1: ='Bloomberg data (hent)'!BF1 -> 0 | BG1: ='Bloomberg data (hent)'!BG1 -> 0 | BH1: ='Bloomberg data (hent)'!BH1 -> 0
A2: ='Bloomberg data (hent)'!A2 -> Dato | B2: ='Bloomberg data (hent)'!B2 -> Ticker | C2: ='Bloomberg data (hent)'!C2 -> Ticker | D2: ='Bloomberg data (hent)'!D2 -> Ticker | E2: ='Bloomberg data (hent)'!E2 -> Ticker | F2: ='Bloomberg data (hent)'!F2 -> Ticker | G2: ='Bloomberg data (hent)'!G2 -> Ticker | H2: ='Bloomberg data (hent)'!H2 -> Ticker | I2: ='Bloomberg data (hent)'!I2 -> Ticker | J2: ='Bloomberg data (hent)'!J2 -> Ticker | K2: ='Bloomberg data (hent)'!K2 -> Ticker | L2: ='Bloomberg data (hent)'!L2 -> Ticker | M2: ='Bloomberg data (hent)'!M2 -> Ticker | N2: ='Bloomberg data (hent)'!N2 -> Ticker | O2: ='Bloomberg data (hent)'!O2 -> Ticker | P2: ='Bloomberg data (hent)'!P2 -> Ticker | Q2: ='Bloomberg data (hent)'!Q2 -> Ticker | R2: ='Bloomberg data (hent)'!R2 -> Ticker | S2: ='Bloomberg data (hent)'!S2 -> Ticker | T2: ='Bloomberg data (hent)'!T2 -> Ticker | U2: ='Bloomberg data (hent)'!U2 -> Ticker | V2: ='Bloomberg data (hent)'!V2 -> Ticker | W2: ='Bloomberg data (hent)'!W2 -> Ticker | X2: ='Bloomberg data (hent)'!X2 -> Ticker | Y2: ='Bloomberg data (hent)'!Y2 -> Ticker | Z2: ='Bloomberg data (hent)'!Z2 -> Ticker | AA2: ='Bloomberg data (hent)'!AA2 -> Ticker | AB2: ='Bloomberg data (hent)'!AB2 -> Ticker | AC2: ='Bloomberg data (hent)'!AC2 -> Ticker | AD2: ='Bloomberg data (hent)'!AD2 -> Ticker | AE2: ='Bloomberg data (hent)'!AE2 -> Ticker | AF2: ='Bloomberg data (hent)'!AF2 -> Ticker | AG2: ='Bloomberg data (hent)'!AG2 -> Ticker | AH2: ='Bloomberg data (hent)'!AH2 -> Ticker | AI2: ='Bloomberg data (hent)'!AI2 -> Ticker | AJ2: ='Bloomberg data (hent)'!AJ2 -> Ticker | AK2: ='Bloomberg data (hent)'!AK2 -> Ticker | AL2: ='Bloomberg data (hent)'!AL2 -> Ticker | AM2: ='Bloomberg data (hent)'!AM2 -> Ticker | AN2: ='Bloomberg data (hent)'!AN2 -> Ticker | AO2: ='Bloomberg data (hent)'!AO2 -> Ticker | AP2: ='Bloomberg data (hent)'!AP2 -> Ticker | AQ2: ='Bloomberg data (hent)'!AQ2 -> Ticker | AR2: ='Bloomberg data (hent)'!AR2 -> Ticker | AS2: ='Bloomberg data (hent)'!AS2 -> Ticker | AT2: ='Bloomberg data (hent)'!AT2 -> Ticker | AU2: ='Bloomberg data (hent)'!AU2 -> Ticker | AV2: ='Bloomberg data (hent)'!AV2 -> Ticker | AW2: ='Bloomberg data (hent)'!AW2 -> Ticker | AX2: ='Bloomberg data (hent)'!AX2 -> Ticker | AY2: ='Bloomberg data (hent)'!AY2 -> Ticker | AZ2: ='Bloomberg data (hent)'!AZ2 -> Ticker | BA2: ='Bloomberg data (hent)'!BA2 -> Ticker | BB2: ='Bloomberg data (hent)'!BB2 -> Ticker | BC2: ='Bloomberg data (hent)'!BC2 -> Ticker | BD2: ='Bloomberg data (hent)'!BD2 -> Ticker | BE2: ='Bloomberg data (hent)'!BE2 -> 0 | BF2: ='Bloomberg data (hent)'!BF2 -> 0 | BG2: ='Bloomberg data (hent)'!BG2 -> 0 | BH2: ='Bloomberg data (hent)'!BH2 -> 0
A3: ='Bloomberg data (hent)'!A3 ->  | B3: ='Bloomberg data (hent)'!B3 -> 0 | C3: ='Bloomberg data (hent)'!C3 ->  | D3: ='Bloomberg data (hent)'!D3 -> 0 | E3: ='Bloomberg data (hent)'!E3 ->  | F3: =EXP('Bloomberg data (hent)'!F3)-1 -> 0 | G3: ='Bloomberg data (hent)'!G3 ->  | H3: =EXP('Bloomberg data (hent)'!H3)-1 -> 0 | I3: ='Bloomberg data (hent)'!I3 ->  | J3: =EXP('Bloomberg data (hent)'!J3)-1 -> 0 | K3: ='Bloomberg data (hent)'!K3 ->  | L3: =EXP('Bloomberg data (hent)'!L3)-1 -> 0 | M3: ='Bloomberg data (hent)'!M3 ->  | N3: =EXP('Bloomberg data (hent)'!N3)-1 -> 0 | O3: ='Bloomberg data (hent)'!O3 ->  | P3: =EXP('Bloomberg data (hent)'!P3)-1 -> 0 | Q3: ='Bloomberg data (hent)'!Q3 ->  | R3: =EXP('Bloomberg data (hent)'!R3)-1 -> 0 | S3: ='Bloomberg data (hent)'!S3 ->  | T3: =EXP('Bloomberg data (hent)'!T3)-1 -> 0 | U3: ='Bloomberg data (hent)'!U3 ->  | V3: =EXP('Bloomberg data (hent)'!V3)-1 -> 0 | W3: ='Bloomberg data (hent)'!W3 ->  | X3: =EXP('Bloomberg data (hent)'!X3)-1 -> 0 | Y3: ='Bloomberg data (hent)'!Y3 ->  | Z3: =EXP('Bloomberg data (hent)'!Z3)-1 -> 0 | AA3: ='Bloomberg data (hent)'!AA3 ->  | AB3: =EXP('Bloomberg data (hent)'!AB3)-1 -> 0 | AC3: ='Bloomberg data (hent)'!AC3 ->  | AD3: =EXP('Bloomberg data (hent)'!AD3)-1 -> 0 | AE3: ='Bloomberg data (hent)'!AE3 ->  | AF3: =EXP('Bloomberg data (hent)'!AF3)-1 -> 0 | AG3: ='Bloomberg data (hent)'!AG3 ->  | AH3: =EXP('Bloomberg data (hent)'!AH3)-1 -> 0 | AI3: ='Bloomberg data (hent)'!AI3 ->  | AJ3: =EXP('Bloomberg data (hent)'!AJ3)-1 -> 0 | AK3: ='Bloomberg data (hent)'!AK3 ->  | AL3: =EXP('Bloomberg data (hent)'!AL3)-1 -> 0 | AM3: ='Bloomberg data (hent)'!AM3 ->  | AN3: =EXP('Bloomberg data (hent)'!AN3)-1 -> 0 | AO3: ='Bloomberg data (hent)'!AO3 ->  | AP3: =EXP('Bloomberg data (hent)'!AP3)-1 -> 0 | AQ3: ='Bloomberg data (hent)'!AQ3 ->  | AR3: =EXP('Bloomberg data (hent)'!AR3)-1 -> 0 | AS3: ='Bloomberg data (hent)'!AS3 ->  | AT3: =EXP('Bloomberg data (hent)'!AT3)-1 -> 0 | AU3: ='Bloomberg data (hent)'!AU3 ->  | AV3: =EXP('Bloomberg data (hent)'!AV3)-1 -> 0 | AW3: ='Bloomberg data (hent)'!AW3 ->  | AX3: =EXP('Bloomberg data (hent)'!AX3)-1 -> 0 | AY3: ='Bloomberg data (hent)'!AY3 ->  | AZ3: =EXP('Bloomberg data (hent)'!AZ3)-1 -> 0 | BA3: ='Bloomberg data (hent)'!BA3 ->  | BB3: =EXP('Bloomberg data (hent)'!BB3)-1 -> 0 | BC3: ='Bloomberg data (hent)'!BC3 ->  | BD3: =EXP('Bloomberg data (hent)'!BD3)-1 -> 0 | BE3: ='Bloomberg data (hent)'!BE3 -> 00:00:00 | BF3: =EXP('Bloomberg data (hent)'!BF3)-1 -> 0 | BG3: ='Bloomberg data (hent)'!BG3 -> 00:00:00 | BH3: =EXP('Bloomberg data (hent)'!BH3)-1 -> 0 | BK3: ='Bloomberg data (hent)'!BK3 -> 
A4: ='Bloomberg data (hent)'!A4 -> 2019-04-04 | B4: ='Bloomberg data (hent)'!B4 -> 0 | C4: ='Bloomberg data (hent)'!C4 -> 2019-04-04 | D4: ='Bloomberg data (hent)'!D4 -> 0 | E4: ='Bloomberg data (hent)'!E4 -> 2019-04-04 | F4: =EXP('Bloomberg data (hent)'!F4)-1 -> 0 | G4: ='Bloomberg data (hent)'!G4 -> 2019-04-04 | H4: =EXP('Bloomberg data (hent)'!H4)-1 -> 0 | I4: ='Bloomberg data (hent)'!I4 -> 2019-04-04 | J4: =EXP('Bloomberg data (hent)'!J4)-1 -> 0 | K4: ='Bloomberg data (hent)'!K4 -> 2019-04-04 | L4: =EXP('Bloomberg data (hent)'!L4)-1 -> 0 | M4: ='Bloomberg data (hent)'!M4 -> 2019-04-04 | N4: =EXP('Bloomberg data (hent)'!N4)-1 -> 0 | O4: ='Bloomberg data (hent)'!O4 -> 2019-04-04 | P4: =EXP('Bloomberg data (hent)'!P4)-1 -> 0 | Q4: ='Bloomberg data (hent)'!Q4 -> 2019-04-04 | R4: =EXP('Bloomberg data (hent)'!R4)-1 -> 0 | S4: ='Bloomberg data (hent)'!S4 -> 2019-04-04 | T4: =EXP('Bloomberg data (hent)'!T4)-1 -> 0 | U4: ='Bloomberg data (hent)'!U4 -> 2019-04-04 | V4: =EXP('Bloomberg data (hent)'!V4)-1 -> 0 | W4: ='Bloomberg data (hent)'!W4 -> 2019-04-04 | X4: =EXP('Bloomberg data (hent)'!X4)-1 -> 0 | Y4: ='Bloomberg data (hent)'!Y4 -> 2019-04-04 | Z4: =EXP('Bloomberg data (hent)'!Z4)-1 -> 0 | AA4: ='Bloomberg data (hent)'!AA4 -> 2019-04-04 | AB4: =EXP('Bloomberg data (hent)'!AB4)-1 -> 0 | AC4: ='Bloomberg data (hent)'!AC4 -> 2019-04-04 | AD4: =EXP('Bloomberg data (hent)'!AD4)-1 -> 0 | AE4: ='Bloomberg data (hent)'!AE4 -> 2019-04-04 | AF4: =EXP('Bloomberg data (hent)'!AF4)-1 -> 0 | AG4: ='Bloomberg data (hent)'!AG4 -> 2019-04-04 | AH4: =EXP('Bloomberg data (hent)'!AH4)-1 -> 0 | AI4: ='Bloomberg data (hent)'!AI4 -> 2019-04-04 | AJ4: =EXP('Bloomberg data (hent)'!AJ4)-1 -> 0 | AK4: ='Bloomberg data (hent)'!AK4 -> 2019-04-04 | AL4: =EXP('Bloomberg data (hent)'!AL4)-1 -> 0 | AM4: ='Bloomberg data (hent)'!AM4 -> 2019-04-04 | AN4: =EXP('Bloomberg data (hent)'!AN4)-1 -> 0 | AO4: ='Bloomberg data (hent)'!AO4 -> 2019-04-04 | AP4: =EXP('Bloomberg data (hent)'!AP4)-1 -> 0 | AQ4: ='Bloomberg data (hent)'!AQ4 -> 2019-04-04 | AR4: =EXP('Bloomberg data (hent)'!AR4)-1 -> 0 | AS4: ='Bloomberg data (hent)'!AS4 -> 2019-04-04 | AT4: =EXP('Bloomberg data (hent)'!AT4)-1 -> 0 | AU4: ='Bloomberg data (hent)'!AU4 -> 2019-04-04 | AV4: =EXP('Bloomberg data (hent)'!AV4)-1 -> 0 | AW4: ='Bloomberg data (hent)'!AW4 -> 2019-04-04 | AX4: =EXP('Bloomberg data (hent)'!AX4)-1 -> 0 | AY4: ='Bloomberg data (hent)'!AY4 -> 2019-04-04 | AZ4: =EXP('Bloomberg data (hent)'!AZ4)-1 -> 0 | BA4: ='Bloomberg data (hent)'!BA4 -> 2019-04-04 | BB4: =EXP('Bloomberg data (hent)'!BB4)-1 -> 0 | BC4: ='Bloomberg data (hent)'!BC4 -> 2019-04-04 | BD4: =EXP('Bloomberg data (hent)'!BD4)-1 -> 0 | BE4: ='Bloomberg data (hent)'!BE4 -> 00:00:00 | BF4: =EXP('Bloomberg data (hent)'!BF4)-1 -> 0 | BG4: ='Bloomberg data (hent)'!BG4 -> 00:00:00 | BH4: =EXP('Bloomberg data (hent)'!BH4)-1 -> 0 | BK4: ='Bloomberg data (hent)'!BK4 -> TRUE | BL4: ='Bloomberg data (hent)'!BL4 -> datotjek
BK10: ='Bloomberg data (hent)'!BK10 -> TRUE
BK12: ='Bloomberg data (hent)'!BK12 -> Nykredit fejl
BK13: ='Bloomberg data (hent)'!BK13 -> TRUE

Sheet VA udregning
A3: Scrncy = wgov*max(Sgov;0) + wcorp*max (Scorp; 0)
A4: RCcrncy = wgov*max(RCgov;0) + wcorp*max(0;RCcorp)
J5: Currency VA (C) | N5: Country VA (National VA) (N)
J6: wgov | K6: 0.095 | N6: wgov | O6: 0.153
A7: Scountry = wgov*max(Sgov;0) + wcorp*max (Scorp; 0) | J7: wcorp | K7: 0.59 | N7: wcorp | O7: 0.405
A8: RCcountry = wgov*max(RCgov;0) + wcorp*max(0;RCcorp) | J8: Sgov(C) | K8: ='S gov (C)'!G25*10000 -> 0 | N8: Sgov(N) | O8: ='S gov (N)'!T25*10000 -> 113.8838741
J9: Scorp(C) | K9: ='S corp (C)'!H25*10000 -> 48.25906682 | N9: Scorp(N) | O9: ='S corp (C)'!H25*10000 -> 48.25906682
J10: RCgov(C) | K10: ='S gov (C)'!G27*10000 -> -3.729655473e-13 | N10: RCgov(N) | O10: ='S gov (N)'!T27*10000 -> 3.856495927
J11: RCcorp(C) | K11: ='S corp (C)'!H27*10000 -> 36.48928083 | N11: RCcorp(N) | O11: ='S corp (C)'!H27*10000 -> 36.48928083
A12: VA total = 0,65 * [SRC crncy + max (SRC country - 2 * SRC crncy; 0)] | J12: Scrncy | K12: =K6*MAX(K8,0)+K7*MAX(K9,0) -> 28.47284942 | N12: Scountry | O12: =O6*MAX(O8,0)+O7*MAX(O9,0) -> 36.9691548
J13: RCcrncy | K13: =K6*MAX(K10,0)+K7*MAX(K11,0) -> 21.52867569 | N13: RCcountry | O13: =O6*MAX(O10,0)+O7*MAX(O11,0) -> 15.36820261
A14: (with S_RC country> 100 bps) | J14: S_RCcrncy | K14: =K12-K13 -> 6.944173729 | N14: S_RCcountry | O14: =O12-O13 -> 21.60095219 | Q14: 0,7*S_RCcountry >100 bp | R14: =IF(+O14*0.7>100,"TRUE","FALSE") -> FALSE
J15: Currency VA | K15: =65%*K14 -> 4.513712924 | N15: Country VA | O15: =65%*O14 -> 14.04061892
J16: Currency VA skaleret | K16: =K15*0.7 -> 3.159599047 | N16: Country VA skaleret | O16: =0.7*O15 -> 9.828433245
L25: VA | M25: DATO
K26: Beregnet | L26: =ROUND(0.65*(0.7*K14+IF(R14="TRUE",MAX(0.7*O14-0.72*K14,0),0)),0) -> 3 | M26: ='Bloomberg data (hent)'!A4 -> 2019-04-04

Sheet S gov (C)
C1: DK | E1: Total
B2: Relative market value | C2: 1 | E2: =SUM(C2:C2) -> 1
B3: Average weighted duration (D) | C3: 6.5
B4: Market Yield (I1) | C4: ='Bloomberg data'!F4/100 -> 0
B5: Market Yield (I2) | C5: ='Bloomberg data'!H4/100 -> 0
B6: Linear Interpolation of Market yield before risk correction | C6: =C4+(C5-C4)*(C3-C7)/(C8-C7) -> 0
B7: Integer (D) | C7: =IF(C$3=0,"-",INT(C$3)) -> 6
B8: Integer (D)+1 | C8: =IF(C$3=0,"-",INT(C$3)+1) -> 7
B9: Basic Risk Free Rate (Integer (D)) | C9: =IF(TYPE(C7)=1,VLOOKUP(,Basiskurve!$B$3:$EU$3,C7),"-") -> 
B10: Basic Risk Free Rate (Integer (D)+1) | C10: =IF(TYPE(C8)=1,VLOOKUP(,Basiskurve!$B$3:$EU$3,C8),"-") -> 
B11: Linear Interpolation of Basic Risk Free Rate | C11: =IF(TYPE(C8)=1,C9+(C10-C9)*(C$3-C$7)/(C$8-C$7),C9) -> 
B12: Risk Correction (Integer (D)) | C12: =IF(TYPE(C7)=1,VLOOKUP(C$1,LTAS_Govts!$A$1:$AE$67,C7+1,FALSE)*0.3/100,"-") -> -4.680275758e-05
B13: Risk Correction (Integer (D)+1) | C13: =IF(TYPE(C8)=1,VLOOKUP(C$1,LTAS_Govts!$A$1:$AE$67,C8+1,FALSE)*0.3/100,"-") -> -5.250100974e-05
B14: Linear Interpolation of Risk Correction | C14: =MAX(0,IF(TYPE(C$8)=1,C12+(C13-C12)*(C$3-C$7)/(C$8-C$7),C12)) -> 0
B15: Risk Corrected Market Yield | C15: =IF(C2>0,C6-C14,"-") -> 0
B17: Step 1 (zcb with Market yield before risk correction) | C17: =IF(C$2>0,C$2*(1+C6)^C$3,0) -> 1
B18: Step 2 (zcb with Basic Risk Free Rate) | C18: =IF(C$2>0,C$2*(1+C11)^C$3,0) -> 
B19: Step 3 (zcb with Risk Corrected Market Yield) | C19: =IF(C$2>0,C$2*(1+C15)^C$3,0) -> 1
E20: Total | F20: Target (100%) | G20: IER
B21: Step 4 (IER1 => market yield before risk correction) | C21: =IF(C$2>0,C17*(1+$G21)^-C$3,0) -> 1.025900582 | E21: =SUM(C21:C21) -> 1.025900582 | F21: =E2 -> 1 | G21: -0.003926247902 | J21: =IF(ABS(E21-1)>0.001,"Tjek at målsøgning er foretaget korrekt","") -> Tjek at målsøgning er foretaget korrekt
B22: Step 5 (IER2 => Basic Risk Free Rate) | C22: =IF(C$2>0,C18*(1+$G22)^-C$3,0) ->  | E22: =SUM(C22:C22) ->  | F22: =E2 -> 1 | G22: -0.001481707579 | J22: =IF(ABS(E22-1)>0.001,"Tjek at målsøgning er foretaget korrekt","") -> 
B23: Step 6 (IER3 => risk corrected market yield) | C23: =IF(C$2>0,C19*(1+$G23)^-C$3,0) -> 1.025900582 | E23: =SUM(C23:C23) -> 1.025900582 | F23: =E2 -> 1 | G23: -0.003926247902 | J23: =IF(ABS(E23-1)>0.001,"Tjek at målsøgning er foretaget korrekt","") -> Tjek at målsøgning er foretaget korrekt
C25: Sgov (before risk correction) = max(0,IER1-IER2) | G25: =MAX(0,G21-G22) -> 0
C27: RCgov=max(0,IER1-IER3) | G27: =MAX(G21-G23) -> -3.729655473e-17

Sheet S corp (C)
C1: Nykredit | F1: Total
B2: Relative market value | C2: 1 | F2: =SUM(C2:D2) -> 1
B3: Average weighted duration (D) | C3: ='Bloomberg data'!D4 -> 0
B4: Market Yield (I1) | C4: ='Bloomberg data'!B4/100 -> 0
B5: Market Yield (I2) | C5: ='Bloomberg data'!B4/100 -> 0
B6: Linear Interpolation of Market yield before risk correction | C6: =C4 -> 0
B7: Integer (D) | C7: =IF(C$3=0,"-",INT(C$3)) -> -
B8: Integer (D)+1 | C8: =IF(C$3=0,"-",INT(C$3)+1) -> -
B9: Basic Risk Free Rate (Integer (D)) | C9: =IF(TYPE(C7)=1,VLOOKUP(,Basiskurve!$B$3:$EU$3,C7),"-") -> -
B10: Basic Risk Free Rate (Integer (D)+1) | C10: =IF(TYPE(C8)=1,VLOOKUP(,Basiskurve!$B$3:$EU$3,C8),"-") -> -
B11: Linear Interpolation of Basic Risk Free Rate | C11: =IF(TYPE(C8)=1,C9+(C10-C9)*(C$3-C$7)/(C$8-C$7),C9) -> -
B12: Risk Correction (Integer (D)) | C12: =LTAS_NYKREDIT!F4/100 -> 0.00398945947
B13: Risk Correction (Integer (D)+1) | C13: =LTAS_NYKREDIT!F4/100 -> 0.00398945947
B14: Linear Interpolation of Risk Correction | C14: =MAX(0,IF(TYPE(C$8)=1,C12+(C13-C12)*(C$3-C$7)/(C$8-C$7),C12)) -> 0.00398945947
B15: Risk Corrected Market Yield | C15: =IF(C2>0,C6-C14,"-") -> -0.00398945947
B17: Step 1 (zcb with Market yield before risk correction) | C17: =IF(C$2>0,C$2*(1+C6)^C$3,0) -> 1
B18: Step 2 (zcb with Basic Risk Free Rate) | C18: =IF(C$2>0,C$2*(1+C11)^C$3,0) -> 
B19: Step 3 (zcb with Risk Corrected Market Yield) | C19: =IF(C$2>0,C$2*(1+C15)^C$3,0) -> 1
F20: Total | G20: Target (100%) | H20: IER
B21: Step 4 (IER1 => market yield before risk correction) | C21: =IF(C$2>0,C17*(1+$H21)^-C$3,0) -> 1 | F21: =SUM(C21:D21) -> 1 | G21: =F2 -> 1 | H21: 0.001226627728 | K21: =IF(ABS(F21-1)>0.001,"Tjek at målsøgning er foretaget korrekt","") -> 
B22: Step 5 (IER2 => Basic Risk Free Rate) | F22: =SUM(C22:D22) ->  | G22: =F2 -> 1 | H22: -0.003599278953 | K22: =IF(ABS(F22-1)>0.001,"Tjek at målsøgning er foretaget korrekt","") -> 
B23: Step 6 (IER3 => risk corrected market yield) | C23: 1 | F23: =SUM(C23:D23) -> 1 | G23: =F2 -> 1 | H23: -0.002422300355 | K23: =IF(ABS(F23-1)>0.001,"Tjek at målsøgning er foretaget korrekt","") -> 
D25: Scorp (before risk correction) = max(0,IER1-IER2) | H25: =MAX(0,H21-H22) -> 0.004825906682
D27: RCcorp=max(0,IER1-IER3) | H27: =MAX(H21-H23) -> 0.003648928083

Sheet S gov (N)
C1: DK | D1: FR | E1: DE | F1: HU | G1: IE | H1: IT | I1: LU | J1: NL | K1: PL | L1: ES | M1: SE | N1: UK | O1: US | Q1: Total
B2: Relative market value | C2: 0.36 | D2: 0.05 | E2: 0.22 | F2: 0.01 | G2: 0.02 | H2: 0.04 | I2: 0.02 | J2: 0.01 | K2: 0.01 | L2: 0.04 | M2: 0.02 | N2: 0.02 | O2: 0.18 | Q2: =SUM(C2:O2) -> 1
B3: Average weighted duration (D) | C3: 6.7 | D3: 4.2 | E3: 6 | F3: 5.1 | G3: 9.8 | H3: 7.9 | I3: 5.2 | J3: 11.3 | K3: 4.8 | L3: 6.2 | M3: 6.9 | N3: 14 | O3: 4
B4: Market Yield (I1) | C4: ='Bloomberg data'!F4/100 -> 0 | D4: ='Bloomberg data'!J4/100 -> 0 | E4: ='Bloomberg data'!N4/100 -> 0 | F4: ='Bloomberg data'!R4/100 -> 0 | G4: ='Bloomberg data'!V4/100 -> 0 | H4: ='Bloomberg data'!Z4/100 -> 0 | I4: ='Bloomberg data'!AD4/100 -> 0 | J4: ='Bloomberg data'!AH4/100 -> 0 | K4: ='Bloomberg data'!AL4/100 -> 0 | L4: ='Bloomberg data'!AP4/100 -> 0 | M4: ='Bloomberg data'!AT4/100 -> 0 | N4: ='Bloomberg data'!AX4/100 -> 0 | O4: ='Bloomberg data'!BB4/100 -> 0
B5: Market Yield (I2) | C5: ='Bloomberg data'!H4/100 -> 0 | D5: ='Bloomberg data'!L4/100 -> 0 | E5: ='Bloomberg data'!P4/100 -> 0 | F5: ='Bloomberg data'!T4/100 -> 0 | G5: ='Bloomberg data'!X4/100 -> 0 | H5: ='Bloomberg data'!AB4/100 -> 0 | I5: ='Bloomberg data'!AF4/100 -> 0 | J5: ='Bloomberg data'!AJ4/100 -> 0 | K5: ='Bloomberg data'!AN4/100 -> 0 | L5: ='Bloomberg data'!AR4/100 -> 0 | M5: ='Bloomberg data'!AV4/100 -> 0 | N5: ='Bloomberg data'!AZ4/100 -> 0 | O5: ='Bloomberg data'!BD4/100 -> 0
B6: Linear Interpolation of Market yield before risk correction | C6: =C4+(C5-C4)*(C3-C7)/(C8-C7) -> 0 | D6: 0 | E6: 0 | F6: 0 | G6: =G4+(G5-G4)*(G3-G7)/(G8-G7) -> 0 | H6: =H4+(H5-H4)*(H3-H7)/(H8-H7) -> 0 | I6: 0 | J6: 0 | K6: 0 | L6: 0 | M6: 0 | N6: 0 | O6: 0
B7: Integer (D) | C7: =IF(C$3=0,"-",INT(C$3)) -> 6 | D7: =IF(D$3=0,"-",INT(D$3)) -> 4 | E7: 6 | F7: 5 | G7: 9 | H7: 7 | I7: 5 | J7: 10 | K7: 4 | L7: 6 | M7: 6 | N7: 10 | O7: 4
B8: Integer (D)+1 | C8: =IF(C$3=0,"-",INT(C$3)+1) -> 7 | D8: =IF(D$3=0,"-",INT(D$3)+1) -> 5 | E8: 7 | F8: 6 | G8: 10 | H8: 8 | I8: 6 | J8: 15 | K8: 5 | L8: 7 | M8: 7 | N8: 15 | O8: 5
B9: Basic Risk Free Rate (Integer (D)) | C9: =IF(TYPE(C7)=1,VLOOKUP(,Basiskurve!$B$3:$EU$3,C7),"-") ->  | D9: =IF(TYPE(D7)=1,VLOOKUP(,Basiskurve!$B$3:$EU$3,D7),"-") ->  | E9: =IF(TYPE(E7)=1,VLOOKUP(,Basiskurve!$B$3:$EU$3,E7),"-") ->  | F9: =IF(TYPE(F7)=1,VLOOKUP(,Basiskurve!$B$3:$EU$3,F7),"-") ->  | G9: =IF(TYPE(G7)=1,VLOOKUP(,Basiskurve!$B$3:$EU$3,G7),"-") ->  | H9: =IF(TYPE(H7)=1,VLOOKUP(,Basiskurve!$B$3:$EU$3,H7),"-") ->  | I9: =IF(TYPE(I7)=1,VLOOKUP(,Basiskurve!$B$3:$EU$3,I7),"-") ->  | J9: =IF(TYPE(J7)=1,VLOOKUP(,Basiskurve!$B$3:$EU$3,J7),"-") ->  | K9: =IF(TYPE(K7)=1,VLOOKUP(,Basiskurve!$B$3:$EU$3,K7),"-") ->  | L9: =IF(TYPE(L7)=1,VLOOKUP(,Basiskurve!$B$3:$EU$3,L7),"-") ->  | M9: =IF(TYPE(M7)=1,VLOOKUP(,Basiskurve!$B$3:$EU$3,M7),"-") ->  | N9: =IF(TYPE(N7)=1,VLOOKUP(,Basiskurve!$B$3:$EU$3,N7),"-") ->  | O9: =IF(TYPE(O7)=1,VLOOKUP(,Basiskurve!$B$3:$EU$3,O7),"-") -> 
B10: Basic Risk Free Rate (Integer (D)+1) | C10: =IF(TYPE(C8)=1,VLOOKUP(,Basiskurve!$B$3:$EU$3,C8),"-") ->  | D10: =IF(TYPE(D8)=1,VLOOKUP(,Basiskurve!$B$3:$EU$3,D8),"-") ->  | E10: =IF(TYPE(E8)=1,VLOOKUP(,Basiskurve!$B$3:$EU$3,E8),"-") ->  | F10: =IF(TYPE(F8)=1,VLOOKUP(,Basiskurve!$B$3:$EU$3,F8),"-") ->  | G10: =IF(TYPE(G8)=1,VLOOKUP(,Basiskurve!$B$3:$EU$3,G8),"-") ->  | H10: =IF(TYPE(H8)=1,VLOOKUP(,Basiskurve!$B$3:$EU$3,H8),"-") ->  | I10: =IF(TYPE(I8)=1,VLOOKUP(,Basiskurve!$B$3:$EU$3,I8),"-") ->  | J10: =IF(TYPE(J8)=1,VLOOKUP(,Basiskurve!$B$3:$EU$3,J8),"-") ->  | K10: =IF(TYPE(K8)=1,VLOOKUP(,Basiskurve!$B$3:$EU$3,K8),"-") ->  | L10: =IF(TYPE(L8)=1,VLOOKUP(,Basiskurve!$B$3:$EU$3,L8),"-") ->  | M10: =IF(TYPE(M8)=1,VLOOKUP(,Basiskurve!$B$3:$EU$3,M8),"-") ->  | N10: =IF(TYPE(N8)=1,VLOOKUP(,Basiskurve!$B$3:$EU$3,N8),"-") ->  | O10: =IF(TYPE(O8)=1,VLOOKUP(,Basiskurve!$B$3:$EU$3,O8),"-") -> 
B11: Linear Interpolation of Basic Risk Free Rate | C11: =IF(TYPE(C8)=1,C9+(C10-C9)*(C$3-C$7)/(C$8-C$7),C9) ->  | D11: =IF(TYPE(D8)=1,D9+(D10-D9)*(D$3-D$7)/(D$8-D$7),D9) -> 
B12: Risk Correction (Integer (D)) | C12: =IF(TYPE(C7)=1,VLOOKUP(C$1,LTAS_Govts!$A$1:$AE$54,C7+1,FALSE)*0.3/100,"-") -> -4.680275758e-05 | D12: =IF(TYPE(D7)=1,VLOOKUP(D$1,LTAS_Govts!$A$1:$AE$54,D7+1,FALSE)*0.3/100,"-") -> -0.0001996881806 | E12: =IF(TYPE(E7)=1,VLOOKUP(E$1,LTAS_Govts!$A$1:$AE$54,E7+1,FALSE)*0.3/100,"-") -> -0.0006314746746 | F12: =IF(TYPE(F7)=1,VLOOKUP(F$1,LTAS_Govts!$A$1:$AE$54,F7+1,FALSE)*0.3/100,"-") -> 0.0004234458085 | G12: =IF(TYPE(G7)=1,VLOOKUP(G$1,LTAS_Govts!$A$1:$AE$54,G7+1,FALSE)*0.3/100,"-") -> 0.003160865633 | H12: =IF(TYPE(H7)=1,VLOOKUP(H$1,LTAS_Govts!$A$1:$AE$54,H7+1,FALSE)*0.3/100,"-") -> 0.002588498703 | I12: =IF(TYPE(I7)=1,VLOOKUP(I$1,LTAS_Govts!$A$1:$AE$54,I7+1,FALSE)*0.3/100,"-") -> -0.0001286636837 | J12: =IF(TYPE(J7)=1,VLOOKUP(J$1,LTAS_Govts!$A$1:$AE$54,J7+1,FALSE)*0.3/100,"-") -> 1.463506733e-05 | K12: =IF(TYPE(K7)=1,VLOOKUP(K$1,LTAS_Govts!$A$1:$AE$54,K7+1,FALSE)*0.3/100,"-") -> 0.0004339243137 | L12: =IF(TYPE(L7)=1,VLOOKUP(L$1,LTAS_Govts!$A$1:$AE$54,L7+1,FALSE)*0.3/100,"-") -> 0.002081827709 | M12: =IF(TYPE(M7)=1,VLOOKUP(M$1,LTAS_Govts!$A$1:$AE$54,M7+1,FALSE)*0.3/100,"-") -> -0.0008902820626 | N12: =IF(TYPE(N7)=1,VLOOKUP(N$1,LTAS_Govts!$A$1:$AE$54,N7+1,FALSE)*0.3/100,"-") -> -0.0005087960289 | O12: =IF(TYPE(O7)=1,VLOOKUP(O$1,LTAS_Govts!$A$1:$AE$54,O7+1,FALSE)*0.3/100,"-") -> -0.0008240835067
B13: Risk Correction (Integer (D)+1) | C13: =IF(TYPE(C8)=1,VLOOKUP(C$1,LTAS_Govts!$A$1:$AE$54,C8+1,FALSE)*0.3/100,"-") -> -5.250100974e-05 | D13: =IF(TYPE(D8)=1,VLOOKUP(D$1,LTAS_Govts!$A$1:$AE$54,D8+1,FALSE)*0.3/100,"-") -> -0.000110985349 | E13: =IF(TYPE(E8)=1,VLOOKUP(E$1,LTAS_Govts!$A$1:$AE$54,E8+1,FALSE)*0.3/100,"-") -> -0.0005856172565 | F13: =IF(TYPE(F8)=1,VLOOKUP(F$1,LTAS_Govts!$A$1:$AE$54,F8+1,FALSE)*0.3/100,"-") -> 0.0004234444221 | G13: =IF(TYPE(G8)=1,VLOOKUP(G$1,LTAS_Govts!$A$1:$AE$54,G8+1,FALSE)*0.3/100,"-") -> 0.003179832708 | H13: =IF(TYPE(H8)=1,VLOOKUP(H$1,LTAS_Govts!$A$1:$AE$54,H8+1,FALSE)*0.3/100,"-") -> 0.002735096247 | I13: =IF(TYPE(I8)=1,VLOOKUP(I$1,LTAS_Govts!$A$1:$AE$54,I8+1,FALSE)*0.3/100,"-") -> -0.0001165909491 | J13: =IF(TYPE(J8)=1,VLOOKUP(J$1,LTAS_Govts!$A$1:$AE$54,J8+1,FALSE)*0.3/100,"-") -> 1.463506733e-05 | K13: =IF(TYPE(K8)=1,VLOOKUP(K$1,LTAS_Govts!$A$1:$AE$54,K8+1,FALSE)*0.3/100,"-") -> 0.0004339106738 | L13: =IF(TYPE(L8)=1,VLOOKUP(L$1,LTAS_Govts!$A$1:$AE$54,L8+1,FALSE)*0.3/100,"-") -> 0.002229505872 | M13: =IF(TYPE(M8)=1,VLOOKUP(M$1,LTAS_Govts!$A$1:$AE$54,M8+1,FALSE)*0.3/100,"-") -> -0.0009063259535 | N13: =IF(TYPE(N8)=1,VLOOKUP(N$1,LTAS_Govts!$A$1:$AE$54,N8+1,FALSE)*0.3/100,"-") -> -0.0005087960289 | O13: =IF(TYPE(O8)=1,VLOOKUP(O$1,LTAS_Govts!$A$1:$AE$54,O8+1,FALSE)*0.3/100,"-") -> -0.0008555233295
B14: Linear Interpolation of Risk Correction | C14: =MAX(0,IF(TYPE(C$8)=1,C12+(C13-C12)*(C$3-C$7)/(C$8-C$7),C12)) -> 0 | D14: 0 | E14: 0 | F14: 0.0004234456699 | G14: 0.003176039293 | H14: 0.002720436493 | I14: 0 | J14: 1.463506733e-05 | K14: 0.0004339134017 | L14: 0.002111363342 | M14: 0 | N14: 0 | O14: 0
B15: Risk Corrected Market Yield | C15: =IF(C2>0,C6-C14,"-") -> 0 | D15: =IF(D2>0,D6-D14,"-") -> 0 | E15: 0 | F15: -0.0004234456699 | G15: -0.003176039293 | H15: -0.002720436493 | I15: 0 | J15: -1.463506733e-05 | K15: -0.0004339134017 | L15: -0.002111363342 | M15: 0 | N15: 0 | O15: 0
B17: Step 1 (zcb with Market yield before risk correction) | C17: =IF(C$2>0,C$2*(1+C6)^C$3,0) -> 0.36 | D17: 0.05 | E17: 0.22 | F17: 0.01 | G17: 0.02 | H17: 0.04 | I17: 0.02 | J17: 0.01 | K17: 0.01 | L17: 0.04 | M17: 0.02 | N17: 0.02 | O17: 0.18
B18: Step 2 (zcb with Basic Risk Free Rate) | C18: =IF(C$2>0,C$2*(1+C11)^C$3,0) -> 
B19: Step 3 (zcb with Risk Corrected Market Yield) | C19: =IF(C$2>0,C$2*(1+C15)^C$3,0) -> 0.36 | D19: 0.05 | E19: 0.22 | F19: 0.009978423009 | G19: 0.01938612407 | H19: 0.03914836737 | I19: 0.02 | J19: 0.009998346362 | K19: 0.009979189321 | L19: 0.03947924783 | M19: 0.02 | N19: 0.02 | O19: 0.18
Q20: Total | R20: Target (100%) | S20: IER
B21: Step 4 (IER1 => market yield before risk correction) | C21: =IF(C$2>0,C17*(1+$S21)^-C$3,0) -> 0.3366645064 | D21: 0.0479429743 | E21: 0.2071850197 | F21: 0.009502662819 | G21: 0.01813252383 | H21: 0.03696085057 | I21: 0.01898632496 | J21: 0.008931248612 | K21: 0.009531220922 | L21: 0.03759471964 | M21: 0.01866620436 | N21: 0.01738654247 | O21: 0.1729403307 | Q21: =SUM(C21:O21) -> 0.9404251292 | R21: =Q2 -> 1 | S21: 0.01005274904 | U21: =IF(ABS(Q21-1)>0.001,"Tjek at målsøgning er foretaget korrekt","") -> Tjek at målsøgning er foretaget korrekt
B22: Step 5 (IER2 => Basic Risk Free Rate) | C22: =IF(C$2>0,C18*(1+$S22)^-C$3,0) ->  | Q22: =SUM(C22:O22) ->  | R22: =Q2 -> 1 | S22: -0.001335638377 | U22: =IF(ABS(Q22-1)>0.001,"Tjek at målsøgning er foretaget korrekt","") -> 
B23: Step 6 (IER3 => risk corrected market yield) | C23: =IF(C$2>0,C19*(1+$S23)^-C$3,0) -> 0.3375270074 | D23: 0.0480199324 | E23: 0.2076602881 | F23: 0.009500644472 | G23: 0.01764186853 | H23: 0.03628322128 | I23: 0.01902406543 | J23: 0.008968389543 | K23: 0.009528836585 | L23: 0.03719323895 | M23: 0.01871545469 | N23: 0.01747974646 | O23: 0.1732047053 | Q23: =SUM(C23:O23) -> 0.9407473992 | R23: =Q2 -> 1 | S23: 0.009667099443 | U23: =IF(ABS(Q23-1)>0.001,"Tjek at målsøgning er foretaget korrekt","") -> Tjek at målsøgning er foretaget korrekt
O25: Sgov (before risk correction) = max(0,IER1-IER2) | T25: =MAX(0,S21-S22) -> 0.01138838741
O27: RCgov=max(0,IER1-IER3) | T27: =MAX(S21-S23) -> 0.0003856495927

Sheet S corp (N)
C3: Scorp (N) udregnes analogt med Scorp (CU). Samme portefølje benyttes.

Sheet Basiskurve
B2: 1 år | C2: 2 år | D2: 3 år | E2: 4 år | F2: 5 år | G2: 6 år | H2: 7 år | I2: 8 år | J2: 9 år | K2: 10 år | L2: 11 år | M2: 12 år | N2: 13 år | O2: 14 år | P2: 15 år | Q2: 16 år | R2: 17 år | S2: 18 år | T2: 19 år | U2: 20 år | V2: 21 år | W2: 22 år | X2: 23 år | Y2: 24 år | Z2: 25 år | AA2: 26 år | AB2: 27 år | AC2: 28 år | AD2: 29 år | AE2: 30 år | AF2: 31 år | AG2: 32 år | AH2: 33 år | AI2: 34 år | AJ2: 35 år | AK2: 36 år | AL2: 37 år | AM2: 38 år | AN2: 39 år | AO2: 40 år | AP2: 41 år | AQ2: 42 år | AR2: 43 år | AS2: 44 år | AT2: 45 år | AU2: 46 år | AV2: 47 år | AW2: 48 år | AX2: 49 år | AY2: 50 år | AZ2: 51 år | BA2: 52 år | BB2: 53 år | BC2: 54 år | BD2: 55 år | BE2: 56 år | BF2: 57 år | BG2: 58 år | BH2: 59 år | BI2: 60 år | BJ2: 61 år | BK2: 62 år | BL2: 63 år | BM2: 64 år | BN2: 65 år | BO2: 66 år | BP2: 67 år | BQ2: 68 år | BR2: 69 år | BS2: 70 år | BT2: 71 år | BU2: 72 år | BV2: 73 år | BW2: 74 år | BX2: 75 år | BY2: 76 år | BZ2: 77 år | CA2: 78 år | CB2: 79 år | CC2: 80 år | CD2: 81 år | CE2: 82 år | CF2: 83 år | CG2: 84 år | CH2: 85 år | CI2: 86 år | CJ2: 87 år | CK2: 88 år | CL2: 89 år | CM2: 90 år | CN2: 91 år | CO2: 92 år | CP2: 93 år | CQ2: 94 år | CR2: 95 år | CS2: 96 år | CT2: 97 år | CU2: 98 år | CV2: 99 år | CW2: 100 år | CX2: 101 år | CY2: 102 år | CZ2: 103 år | DA2: 104 år | DB2: 105 år | DC2: 106 år | DD2: 107 år | DE2: 108 år | DF2: 109 år | DG2: 110 år | DH2: 111 år | DI2: 112 år | DJ2: 113 år | DK2: 114 år | DL2: 115 år | DM2: 116 år | DN2: 117 år | DO2: 118 år | DP2: 119 år | DQ2: 120 år | DR2: 121 år | DS2: 122 år | DT2: 123 år | DU2: 124 år | DV2: 125 år | DW2: 126 år | DX2: 127 år | DY2: 128 år | DZ2: 129 år | EA2: 130 år
A3: 2019-04-04

Sheet LTAS_Govts
A1: 2019-03-31 | B1: 1 | C1: 2 | D1: 3 | E1: 4 | F1: 5 | G1: 6 | H1: 7 | I1: 8 | J1: 9 | K1: 10 | L1: 11 | M1: 12 | N1: 13 | O1: 14 | P1: 15 | Q1: 16 | R1: 17 | S1: 18 | T1: 19 | U1: 20 | V1: 21 | W1: 22 | X1: 23 | Y1: 24 | Z1: 25 | AA1: 26 | AB1: 27 | AC1: 28 | AD1: 29 | AE1: 30
A2: EUR | B2: -0.003764487166 | C2: 0.09914456103 | D2: 0.1502973683 | E2: 0.1996490964 | F2: 0.2452317375 | G2: 0.2964899727 | H2: 0.3356887916 | I2: 0.3677991321 | J2: 0.3858191908 | K2: 0.3958115698 | L2: 0.3958115698 | M2: 0.3958115698 | N2: 0.3958115698 | O2: 0.3958115698 | P2: 0.3958115698 | Q2: 0.3958115698 | R2: 0.3958115698 | S2: 0.3958115698 | T2: 0.3958115698 | U2: 0.3958115698 | V2: 0.3958115698 | W2: 0.3958115698 | X2: 0.3958115698 | Y2: 0.3958115698 | Z2: 0.3958115698 | AA2: 0.3958115698 | AB2: 0.3958115698 | AC2: 0.3958115698 | AD2: 0.3958115698 | AE2: 0.3958115698
A3: AT | B3: -0.07259467878 | C3: -0.1060529635 | D3: -0.07540252293 | E3: -0.03353095714 | F3: 0.008340608662 | G3: 0.03368338871 | H3: 0.06282650632 | I3: 0.08779827798 | J3: 0.1046208723 | K3: 0.1132702578 | L3: 0.1132702578 | M3: 0.1132702578 | N3: 0.1132702578 | O3: 0.1132702578 | P3: 0.1132702578 | Q3: 0.1132702578 | R3: 0.1132702578 | S3: 0.1132702578 | T3: 0.1132702578 | U3: 0.1132702578 | V3: 0.1132702578 | W3: 0.1132702578 | X3: 0.1132702578 | Y3: 0.1132702578 | Z3: 0.1132702578 | AA3: 0.1132702578 | AB3: 0.1132702578 | AC3: 0.1132702578 | AD3: 0.1132702578 | AE3: 0.1132702578
A4: BE | B4: -0.1321370764 | C4: -0.02233194149 | D4: 0.03108236797 | E4: 0.08303778042 | F4: 0.1288027502 | G4: 0.1622055 | H4: 0.1886155903 | I4: 0.2255234554 | J4: 0.2577192052 | K4: 0.2776621113 | L4: 0.2776621113 | M4: 0.2776621113 | N4: 0.2776621113 | O4: 0.2776621113 | P4: 0.2776621113 | Q4: 0.2776621113 | R4: 0.2776621113 | S4: 0.2776621113 | T4: 0.2776621113 | U4: 0.2776621113 | V4: 0.2776621113 | W4: 0.2776621113 | X4: 0.2776621113 | Y4: 0.2776621113 | Z4: 0.2776621113 | AA4: 0.2776621113 | AB4: 0.2776621113 | AC4: 0.2776621113 | AD4: 0.2776621113 | AE4: 0.2776621113
A5: BG | B5: 1.070688352 | C5: 1.326489248 | D5: 1.502193983 | E5: 1.599168591 | F5: 1.745390974 | G5: 1.839014657 | H5: 1.94146177 | I5: 1.997283151 | J5: 2.063718862 | K5: 2.12725541 | L5: 2.12725541 | M5: 2.12725541 | N5: 2.12725541 | O5: 2.12725541 | P5: 2.12725541 | Q5: 2.12725541 | R5: 2.12725541 | S5: 2.12725541 | T5: 2.12725541 | U5: 2.12725541 | V5: 2.12725541 | W5: 2.12725541 | X5: 2.12725541 | Y5: 2.12725541 | Z5: 2.12725541 | AA5: 2.12725541 | AB5: 2.12725541 | AC5: 2.12725541 | AD5: 2.12725541 | AE5: 2.12725541
A6: HR | B6: 0.1696372602 | C6: 0.1696372602 | D6: 0.1725973811 | E6: 0.1741922468 | F6: 0.1733547463 | G6: 0.1750254818 | H6: 0.1766962174 | I6: 0.157172183 | J6: 0.1639080906 | K6: 0.1755341257 | L6: 0.1755341257 | M6: 0.1755341257 | N6: 0.1755341257 | O6: 0.1755341257 | P6: 0.1755341257 | Q6: 0.1755341257 | R6: 0.1755341257 | S6: 0.1755341257 | T6: 0.1755341257 | U6: 0.1755341257 | V6: 0.1755341257 | W6: 0.1755341257 | X6: 0.1755341257 | Y6: 0.1755341257 | Z6: 0.1755341257 | AA6: 0.1755341257 | AB6: 0.1755341257 | AC6: 0.1755341257 | AD6: 0.1755341257 | AE6: 0.1755341257
A7: CY | B7: 0.8565779391 | C7: 1.420827437 | D7: 1.602706063 | E7: 1.631110406 | F7: 1.737360474 | G7: 1.818540243 | H7: 1.84960603 | I7: 1.834132222 | J7: 1.738676335 | K7: 1.708852012 | L7: 1.708852012 | M7: 1.708852012 | N7: 1.708852012 | O7: 1.708852012 | P7: 1.708852012 | Q7: 1.708852012 | R7: 1.708852012 | S7: 1.708852012 | T7: 1.708852012 | U7: 1.708852012 | V7: 1.708852012 | W7: 1.708852012 | X7: 1.708852012 | Y7: 1.708852012 | Z7: 1.708852012 | AA7: 1.708852012 | AB7: 1.708852012 | AC7: 1.708852012 | AD7: 1.708852012 | AE7: 1.708852012
A8: CZ | B8: -0.01243201776 | C8: 0.001029020567 | D8: 0.06052268713 | E8: 0.1067840074 | F8: 0.1629720498 | G8: 0.2276209287 | H8: 0.3024205939 | I8: 0.3810287928 | J8: 0.4188488131 | K8: 0.4566688335 | L8: 0.4566688335 | M8: 0.4566688335 | N8: 0.4566688335 | O8: 0.4566688335 | P8: 0.4566688335 | Q8: 0.4566688335 | R8: 0.4566688335 | S8: 0.4566688335 | T8: 0.4566688335 | U8: 0.4566688335 | V8: 0.4566688335 | W8: 0.4566688335 | X8: 0.4566688335 | Y8: 0.4566688335 | Z8: 0.4566688335 | AA8: 0.4566688335 | AB8: 0.4566688335 | AC8: 0.4566688335 | AD8: 0.4566688335 | AE8: 0.4566688335
A9: DK | B9: 0.03249492584 | C9: 0.01377324371 | D9: -0.0008658790568 | E9: -0.00513469389 | F9: -0.01301727526 | G9: -0.01560091919 | H9: -0.01750033658 | I9: -0.01369426391 | J9: -0.009205106147 | K9: -0.004715948385 | L9: -0.004715948385 | M9: -0.004715948385 | N9: -0.004715948385 | O9: -0.004715948385 | P9: -0.004715948385 | Q9: -0.004715948385 | R9: -0.004715948385 | S9: -0.004715948385 | T9: -0.004715948385 | U9: -0.004715948385 | V9: -0.004715948385 | W9: -0.004715948385 | X9: -0.004715948385 | Y9: -0.004715948385 | Z9: -0.004715948385 | AA9: -0.004715948385 | AB9: -0.004715948385 | AC9: -0.004715948385 | AD9: -0.004715948385 | AE9: -0.004715948385
A10: EE | B10: -0.1321370764 | C10: -0.02233194149 | D10: 0.03108236797 | E10: 0.08303778042 | F10: 0.1288027502 | G10: 0.1622055 | H10: 0.1886155903 | I10: 0.2255234554 | J10: 0.2577192052 | K10: 0.2776621113 | L10: 0.2776621113 | M10: 0.2776621113 | N10: 0.2776621113 | O10: 0.2776621113 | P10: 0.2776621113 | Q10: 0.2776621113 | R10: 0.2776621113 | S10: 0.2776621113 | T10: 0.2776621113 | U10: 0.2776621113 | V10: 0.2776621113 | W10: 0.2776621113 | X10: 0.2776621113 | Y10: 0.2776621113 | Z10: 0.2776621113 | AA10: 0.2776621113 | AB10: 0.2776621113 | AC10: 0.2776621113 | AD10: 0.2776621113 | AE10: 0.2776621113
A11: FI | B11: -0.134865064 | C11: -0.1534306859 | D11: -0.1314602127 | E11: -0.09236073027 | F11: -0.06507679838 | G11: -0.03828275953 | H11: -0.01358125973 | I11: 0.007101912665 | J11: 0.01897459037 | K11: 0.01436041328 | L11: 0.01436041328 | M11: 0.01436041328 | N11: 0.01436041328 | O11: 0.01436041328 | P11: 0.01436041328 | Q11: 0.01436041328 | R11: 0.01436041328 | S11: 0.01436041328 | T11: 0.01436041328 | U11: 0.01436041328 | V11: 0.01436041328 | W11: 0.01436041328 | X11: 0.01436041328 | Y11: 0.01436041328 | Z11: 0.01436041328 | AA11: 0.01436041328 | AB11: 0.01436041328 | AC11: 0.01436041328 | AD11: 0.01436041328 | AE11: 0.01436041328
A12: FR | B12: -0.1849643291 | C12: -0.1365076556 | D12: -0.1130268232 | E12: -0.06656272688 | F12: -0.03699511634 | G12: -0.03315420057 | H12: -0.003606080392 | I12: 0.04093248108 | J12: 0.07777051093 | K12: 0.1046920905 | L12: 0.1046920905 | M12: 0.1046920905 | N12: 0.1046920905 | O12: 0.1046920905 | P12: 0.1046920905 | Q12: 0.1046920905 | R12: 0.1046920905 | S12: 0.1046920905 | T12: 0.1046920905 | U12: 0.1046920905 | V12: 0.1046920905 | W12: 0.1046920905 | X12: 0.1046920905 | Y12: 0.1046920905 | Z12: 0.1046920905 | AA12: 0.1046920905 | AB12: 0.1046920905 | AC12: 0.1046920905 | AD12: 0.1046920905 | AE12: 0.1046920905
A13: DE | B13: -0.2201647468 | C13: -0.2357646854 | D13: -0.2491041842 | E13: -0.2308657423 | F13: -0.2250098843 | G13: -0.2104915582 | H13: -0.1952057522 | I13: -0.1813950428 | J13: -0.183410377 | K13: -0.1868514012 | L13: -0.1868514012 | M13: -0.1868514012 | N13: -0.1868514012 | O13: -0.1868514012 | P13: -0.1868514012 | Q13: -0.1868514012 | R13: -0.1868514012 | S13: -0.1868514012 | T13: -0.1868514012 | U13: -0.1868514012 | V13: -0.1868514012 | W13: -0.1868514012 | X13: -0.1868514012 | Y13: -0.1868514012 | Z13: -0.1868514012 | AA13: -0.1868514012 | AB13: -0.1868514012 | AC13: -0.1868514012 | AD13: -0.1868514012 | AE13: -0.1868514012
A14: GR | B14: 13.49924846 | C14: 8.333787956 | D14: 7.378893242 | E14: 6.423998527 | F14: 5.869903051 | G14: 5.763543791 | H14: 5.65718453 | I14: 5.806548962 | J14: 5.869220361 | K14: 5.936007864 | L14: 5.936007864 | M14: 5.936007864 | N14: 5.936007864 | O14: 5.936007864 | P14: 5.936007864 | Q14: 5.936007864 | R14: 5.936007864 | S14: 5.936007864 | T14: 5.936007864 | U14: 5.936007864 | V14: 5.936007864 | W14: 5.936007864 | X14: 5.936007864 | Y14: 5.936007864 | Z14: 5.936007864 | AA14: 5.936007864 | AB14: 5.936007864 | AC14: 5.936007864 | AD14: 5.936007864 | AE14: 5.936007864
A15: HU | B15: 0.141171248 | C15: 0.141141671 | D15: 0.141141671 | E15: 0.1411437505 | F15: 0.1411486028 | G15: 0.1411481407 | H15: 0.1411467543 | I15: 0.08183564977 | J15: 0.02399477925 | K15: 0.141141671 | L15: 0.141141671 | M15: 0.141141671 | N15: 0.141141671 | O15: 0.141141671 | P15: 0.141141671 | Q15: 0.141141671 | R15: 0.141141671 | S15: 0.141141671 | T15: 0.141141671 | U15: 0.141141671 | V15: 0.141141671 | W15: 0.141141671 | X15: 0.141141671 | Y15: 0.141141671 | Z15: 0.141141671 | AA15: 0.141141671 | AB15: 0.141141671 | AC15: 0.141141671 | AD15: 0.141141671 | AE15: 0.141141671
A16: IS | B16: 0 | C16: 0 | D16: 0 | E16: 0 | F16: 0 | G16: 0 | H16: 0 | I16: 0 | J16: 0 | K16: 0 | L16: 0 | M16: 0 | N16: 0 | O16: 0 | P16: 0 | Q16: 0 | R16: 0 | S16: 0 | T16: 0 | U16: 0 | V16: 0 | W16: 0 | X16: 0 | Y16: 0 | Z16: 0 | AA16: 0 | AB16: 0 | AC16: 0 | AD16: 0 | AE16: 0
A17: IE | B17: 0.5554760974 | C17: 0.775886686 | D17: 0.8623862769 | E17: 0.8984883749 | F17: 0.9351092649 | G17: 0.9770551028 | H17: 1.00498456 | I17: 1.038334868 | J17: 1.053621878 | K17: 1.059944236 | L17: 1.059944236 | M17: 1.059944236 | N17: 1.059944236 | O17: 1.059944236 | P17: 1.059944236 | Q17: 1.059944236 | R17: 1.059944236 | S17: 1.059944236 | T17: 1.059944236 | U17: 1.059944236 | V17: 1.059944236 | W17: 1.059944236 | X17: 1.059944236 | Y17: 1.059944236 | Z17: 1.059944236 | AA17: 1.059944236 | AB17: 1.059944236 | AC17: 1.059944236 | AD17: 1.059944236 | AE17: 1.059944236
A18: IT | B18: 0.2039508479 | C18: 0.4721021877 | D18: 0.6095762495 | E18: 0.7007429492 | F18: 0.7695455939 | G18: 0.8082425837 | H18: 0.862832901 | I18: 0.911698749 | J18: 0.9633426529 | K18: 1.007070886 | L18: 1.007070886 | M18: 1.007070886 | N18: 1.007070886 | O18: 1.007070886 | P18: 1.007070886 | Q18: 1.007070886 | R18: 1.007070886 | S18: 1.007070886 | T18: 1.007070886 | U18: 1.007070886 | V18: 1.007070886 | W18: 1.007070886 | X18: 1.007070886 | Y18: 1.007070886 | Z18: 1.007070886 | AA18: 1.007070886 | AB18: 1.007070886 | AC18: 1.007070886 | AD18: 1.007070886 | AE18: 1.007070886
A19: LV | B19: 0.1656777146 | C19: 0.3768170072 | D19: 0.4893447709 | E19: 0.5516853769 | F19: 0.6179909572 | G19: 0.6646059481 | H19: 0.7118547246 | I19: 0.7543290976 | J19: 0.7833619392 | K19: 0.8081390289 | L19: 0.8081390289 | M19: 0.8081390289 | N19: 0.8081390289 | O19: 0.8081390289 | P19: 0.8081390289 | Q19: 0.8081390289 | R19: 0.8081390289 | S19: 0.8081390289 | T19: 0.8081390289 | U19: 0.8081390289 | V19: 0.8081390289 | W19: 0.8081390289 | X19: 0.8081390289 | Y19: 0.8081390289 | Z19: 0.8081390289 | AA19: 0.8081390289 | AB19: 0.8081390289 | AC19: 0.8081390289 | AD19: 0.8081390289 | AE19: 0.8081390289
A20: LI | B20: -0.08317496935 | C20: -0.08317496935 | D20: -0.1296332021 | E20: -0.1696533936 | F20: -0.1908280625 | G20: -0.2124242186 | H20: -0.2225316219 | I20: -0.2368370146 | J20: -0.2472156231 | K20: -0.2575942317 | L20: -0.2575942317 | M20: -0.2575942317 | N20: -0.2575942317 | O20: -0.2575942317 | P20: -0.2575942317 | Q20: -0.2575942317 | R20: -0.2575942317 | S20: -0.2575942317 | T20: -0.2575942317 | U20: -0.2575942317 | V20: -0.2575942317 | W20: -0.2575942317 | X20: -0.2575942317 | Y20: -0.2575942317 | Z20: -0.2575942317 | AA20: -0.2575942317 | AB20: -0.2575942317 | AC20: -0.2575942317 | AD20: -0.2575942317 | AE20: -0.2575942317
A21: LT | B21: 0.175534016 | C21: 0.391655328 | D21: 0.5066656568 | E21: 0.5721669826 | F21: 0.6431420299 | G21: 0.6939425697 | H21: 0.743168624 | I21: 0.7892514074 | J21: 0.8210941286 | K21: 0.8482061047 | L21: 0.8482061047 | M21: 0.8482061047 | N21: 0.8482061047 | O21: 0.8482061047 | P21: 0.8482061047 | Q21: 0.8482061047 | R21: 0.8482061047 | S21: 0.8482061047 | T21: 0.8482061047 | U21: 0.8482061047 | V21: 0.8482061047 | W21: 0.8482061047 | X21: 0.8482061047 | Y21: 0.8482061047 | Z21: 0.8482061047 | AA21: 0.8482061047 | AB21: 0.8482061047 | AC21: 0.8482061047 | AD21: 0.8482061047 | AE21: 0.8482061047
A22: LU | B22: -0.1898887832 | C22: -0.1440118431 | D22: -0.1199601211 | E22: -0.07263597584 | F22: -0.04288789457 | G22: -0.03886364969 | H22: -0.01009671246 | I22: 0.03299569485 | J22: 0.06828703341 | K22: 0.0934975524 | L22: 0.0934975524 | M22: 0.0934975524 | N22: 0.0934975524 | O22: 0.0934975524 | P22: 0.0934975524 | Q22: 0.0934975524 | R22: 0.0934975524 | S22: 0.0934975524 | T22: 0.0934975524 | U22: 0.0934975524 | V22: 0.0934975524 | W22: 0.0934975524 | X22: 0.0934975524 | Y22: 0.0934975524 | Z22: 0.0934975524 | AA22: 0.0934975524 | AB22: 0.0934975524 | AC22: 0.0934975524 | AD22: 0.0934975524 | AE22: 0.0934975524
A23: MT | B23: 0.5554760974 | C23: 0.775886686 | D23: 0.8623862769 | E23: 0.8984883749 | F23: 0.9351092649 | G23: 0.9770551028 | H23: 1.00498456 | I23: 1.038334868 | J23: 1.053621878 | K23: 1.059944236 | L23: 1.059944236 | M23: 1.059944236 | N23: 1.059944236 | O23: 1.059944236 | P23: 1.059944236 | Q23: 1.059944236 | R23: 1.059944236 | S23: 1.059944236 | T23: 1.059944236 | U23: 1.059944236 | V23: 1.059944236 | W23: 1.059944236 | X23: 1.059944236 | Y23: 1.059944236 | Z23: 1.059944236 | AA23: 1.059944236 | AB23: 1.059944236 | AC23: 1.059944236 | AD23: 1.059944236 | AE23: 1.059944236
A24: NL | B24: -0.1878057387 | C24: -0.1583097284 | D24: -0.1313358033 | E24: -0.103967282 | F24: -0.0794032683 | G24: -0.06353452722 | H24: -0.03953866297 | I24: -0.01607531101 | J24: -0.0003825063555 | K24: 0.004878355777 | L24: 0.004878355777 | M24: 0.004878355777 | N24: 0.004878355777 | O24: 0.004878355777 | P24: 0.004878355777 | Q24: 0.004878355777 | R24: 0.004878355777 | S24: 0.004878355777 | T24: 0.004878355777 | U24: 0.004878355777 | V24: 0.004878355777 | W24: 0.004878355777 | X24: 0.004878355777 | Y24: 0.004878355777 | Z24: 0.004878355777 | AA24: 0.004878355777 | AB24: 0.004878355777 | AC24: 0.004878355777 | AD24: 0.004878355777 | AE24: 0.004878355777
A25: NO | B25: -0.2262147257 | C25: -0.3748874521 | D25: -0.4110992479 | E25: -0.4233140836 | F25: -0.4268388935 | G25: -0.4283553126 | H25: -0.4238833456 | I25: -0.4200824674 | J25: -0.4167652425 | K25: -0.4167652425 | L25: -0.4167652425 | M25: -0.4167652425 | N25: -0.4167652425 | O25: -0.4167652425 | P25: -0.4167652425 | Q25: -0.4167652425 | R25: -0.4167652425 | S25: -0.4167652425 | T25: -0.4167652425 | U25: -0.4167652425 | V25: -0.4167652425 | W25: -0.4167652425 | X25: -0.4167652425 | Y25: -0.4167652425 | Z25: -0.4167652425 | AA25: -0.4167652425 | AB25: -0.4167652425 | AC25: -0.4167652425 | AD25: -0.4167652425 | AE25: -0.4167652425
A26: PL | B26: 0.1446437112 | C26: 0.1446418926 | D26: 0.1446414379 | E26: 0.1446414379 | F26: 0.1446368913 | G26: 0.1446393919 | H26: 0.1446423472 | I26: 0.1446439386 | J26: 0.1446421199 | K26: 0.1446403012 | L26: 0.1446403012 | M26: 0.1446403012 | N26: 0.1446403012 | O26: 0.1446403012 | P26: 0.1446403012 | Q26: 0.1446403012 | R26: 0.1446403012 | S26: 0.1446403012 | T26: 0.1446403012 | U26: 0.1446403012 | V26: 0.1446403012 | W26: 0.1446403012 | X26: 0.1446403012 | Y26: 0.1446403012 | Z26: 0.1446403012 | AA26: 0.1446403012 | AB26: 0.1446403012 | AC26: 0.1446403012 | AD26: 0.1446403012 | AE26: 0.1446403012
A27: PT | B27: 0.8565779391 | C27: 1.420827437 | D27: 1.602706063 | E27: 1.631110406 | F27: 1.737360474 | G27: 1.81866303 | H27: 1.84960603 | I27: 1.834132222 | J27: 1.738676335 | K27: 1.708852012 | L27: 1.708852012 | M27: 1.708852012 | N27: 1.708852012 | O27: 1.708852012 | P27: 1.708852012 | Q27: 1.708852012 | R27: 1.708852012 | S27: 1.708852012 | T27: 1.708852012 | U27: 1.708852012 | V27: 1.708852012 | W27: 1.708852012 | X27: 1.708852012 | Y27: 1.708852012 | Z27: 1.708852012 | AA27: 1.708852012 | AB27: 1.708852012 | AC27: 1.708852012 | AD27: 1.708852012 | AE27: 1.708852012
A28: RO | B28: 0.3113228274 | C28: 0.5775626422 | D28: 0.6594045534 | E28: 0.6977796833 | F28: 0.744194618 | G28: 0.7932997822 | H28: 0.8424049463 | I28: 0.8996931722 | J28: 0.9442968724 | K28: 0.8622371255 | L28: 0.8622371255 | M28: 0.8622371255 | N28: 0.8622371255 | O28: 0.8622371255 | P28: 0.8622371255 | Q28: 0.8622371255 | R28: 0.8622371255 | S28: 0.8622371255 | T28: 0.8622371255 | U28: 0.8622371255 | V28: 0.8622371255 | W28: 0.8622371255 | X28: 0.8622371255 | Y28: 0.8622371255 | Z28: 0.8622371255 | AA28: 0.8622371255 | AB28: 0.8622371255 | AC28: 0.8622371255 | AD28: 0.8622371255 | AE28: 0.8622371255
A29: RU | B29: -0.6812700904 | C29: -0.3521648259 | D29: -0.09988056232 | E29: -0.01781852009 | F29: 0.03559177343 | G29: 0.1384378813 | H29: 0.2147268503 | I29: 0.3379518526 | J29: 0.5164016643 | K29: 0.5164016643 | L29: 0.5164016643 | M29: 0.5164016643 | N29: 0.5164016643 | O29: 0.5164016643 | P29: 0.5164016643 | Q29: 0.5164016643 | R29: 0.5164016643 | S29: 0.5164016643 | T29: 0.5164016643 | U29: 0.5164016643 | V29: 0.5164016643 | W29: 0.5164016643 | X29: 0.5164016643 | Y29: 0.5164016643 | Z29: 0.5164016643 | AA29: 0.5164016643 | AB29: 0.5164016643 | AC29: 0.5164016643 | AD29: 0.5164016643 | AE29: 0.5164016643
A30: SK | B30: 0.4104077662 | C30: 0.5350718554 | D30: 0.6166613362 | E30: 0.6634121877 | F30: 0.7101630391 | G30: 0.7576706574 | H30: 0.8059965858 | I30: 0.8471389187 | J30: 0.8531811697 | K30: 0.8631023186 | L30: 0.8631023186 | M30: 0.8631023186 | N30: 0.8631023186 | O30: 0.8631023186 | P30: 0.8631023186 | Q30: 0.8631023186 | R30: 0.8631023186 | S30: 0.8631023186 | T30: 0.8631023186 | U30: 0.8631023186 | V30: 0.8631023186 | W30: 0.8631023186 | X30: 0.8631023186 | Y30: 0.8631023186 | Z30: 0.8631023186 | AA30: 0.8631023186 | AB30: 0.8631023186 | AC30: 0.8631023186 | AD30: 0.8631023186 | AE30: 0.8631023186
A31: SI | B31: 0.6352663247 | C31: 0.7399042884 | D31: 0.8883399242 | E31: 1.03677556 | F31: 1.150817218 | G31: 1.261693229 | H31: 1.312964344 | I31: 1.357246483 | J31: 1.380693456 | K31: 1.377156222 | L31: 1.377156222 | M31: 1.377156222 | N31: 1.377156222 | O31: 1.377156222 | P31: 1.377156222 | Q31: 1.377156222 | R31: 1.377156222 | S31: 1.377156222 | T31: 1.377156222 | U31: 1.377156222 | V31: 1.377156222 | W31: 1.377156222 | X31: 1.377156222 | Y31: 1.377156222 | Z31: 1.377156222 | AA31: 1.377156222 | AB31: 1.377156222 | AC31: 1.377156222 | AD31: 1.377156222 | AE31: 1.377156222
A32: ES | B32: 0.175534016 | C32: 0.391655328 | D32: 0.5066656568 | E32: 0.5721669826 | F32: 0.6431420299 | G32: 0.6939425697 | H32: 0.743168624 | I32: 0.7892514074 | J32: 0.8210941286 | K32: 0.8482061047 | L32: 0.8482061047 | M32: 0.8482061047 | N32: 0.8482061047 | O32: 0.8482061047 | P32: 0.8482061047 | Q32: 0.8482061047 | R32: 0.8482061047 | S32: 0.8482061047 | T32: 0.8482061047 | U32: 0.8482061047 | V32: 0.8482061047 | W32: 0.8482061047 | X32: 0.8482061047 | Y32: 0.8482061047 | Z32: 0.8482061047 | AA32: 0.8482061047 | AB32: 0.8482061047 | AC32: 0.8482061047 | AD32: 0.8482061047 | AE32: 0.8482061047
A33: SE | B33: -0.1991977013 | C33: -0.2135287398 | D33: -0.242739006 | E33: -0.2683202572 | F33: -0.2861226134 | G33: -0.2967606875 | H33: -0.3021086512 | I33: -0.3094263771 | J33: -0.309789135 | K33: -0.3101897131 | L33: -0.3101897131 | M33: -0.3101897131 | N33: -0.3101897131 | O33: -0.3101897131 | P33: -0.3101897131 | Q33: -0.3101897131 | R33: -0.3101897131 | S33: -0.3101897131 | T33: -0.3101897131 | U33: -0.3101897131 | V33: -0.3101897131 | W33: -0.3101897131 | X33: -0.3101897131 | Y33: -0.3101897131 | Z33: -0.3101897131 | AA33: -0.3101897131 | AB33: -0.3101897131 | AC33: -0.3101897131 | AD33: -0.3101897131 | AE33: -0.3101897131
A34: CH | B34: -0.08317496935 | C34: -0.08317496935 | D34: -0.1296332021 | E34: -0.1696533936 | F34: -0.1908280625 | G34: -0.2124242186 | H34: -0.2225316219 | I34: -0.2368370146 | J34: -0.2472156231 | K34: -0.2575942317 | L34: -0.2575942317 | M34: -0.2575942317 | N34: -0.2575942317 | O34: -0.2575942317 | P34: -0.2575942317 | Q34: -0.2575942317 | R34: -0.2575942317 | S34: -0.2575942317 | T34: -0.2575942317 | U34: -0.2575942317 | V34: -0.2575942317 | W34: -0.2575942317 | X34: -0.2575942317 | Y34: -0.2575942317 | Z34: -0.2575942317 | AA34: -0.2575942317 | AB34: -0.2575942317 | AC34: -0.2575942317 | AD34: -0.2575942317 | AE34: -0.2575942317
A35: UK | B35: -0.2997082299 | C35: -0.2983111879 | D35: -0.2846008169 | E35: -0.264801334 | F35: -0.2510538808 | G35: -0.2576284145 | H35: -0.2192816629 | I35: -0.1944052253 | J35: -0.1715328326 | K35: -0.1695986763 | L35: -0.1695986763 | M35: -0.1695986763 | N35: -0.1695986763 | O35: -0.1695986763 | P35: -0.1695986763 | Q35: -0.1695986763 | R35: -0.1695986763 | S35: -0.1695986763 | T35: -0.1695986763 | U35: -0.1695986763 | V35: -0.1695986763 | W35: -0.1695986763 | X35: -0.1695986763 | Y35: -0.1695986763 | Z35: -0.1695986763 | AA35: -0.1695986763 | AB35: -0.1695986763 | AC35: -0.1695986763 | AD35: -0.1695986763 | AE35: -0.1695986763
A36: AU | B36: -0.1146067683 | C36: -0.1741246021 | D36: -0.2181447497 | E36: -0.2428501301 | F36: -0.2492803882 | G36: -0.2443531163 | H36: -0.2460487971 | I36: -0.2391272827 | J36: -0.2406487364 | K36: -0.2406761392 | L36: -0.2406761392 | M36: -0.2406761392 | N36: -0.2406761392 | O36: -0.2406761392 | P36: -0.2406761392 | Q36: -0.2406761392 | R36: -0.2406761392 | S36: -0.2406761392 | T36: -0.2406761392 | U36: -0.2406761392 | V36: -0.2406761392 | W36: -0.2406761392 | X36: -0.2406761392 | Y36: -0.2406761392 | Z36: -0.2406761392 | AA36: -0.2406761392 | AB36: -0.2406761392 | AC36: -0.2406761392 | AD36: -0.2406761392 | AE36: -0.2406761392
A37: BR | B37: 0.3423059712 | C37: 0.3423342226 | D37: 0.3423391564 | E37: 0.342115663 | F37: 0.3421445074 | G37: 0.3421628492 | H37: 0.3421834505 | I37: 0.3422001959 | J37: 0.3422055431 | K37: 0.3422094259 | L37: 0.3422094259 | M37: 0.3422094259 | N37: 0.3422094259 | O37: 0.3422094259 | P37: 0.3422094259 | Q37: 0.3422094259 | R37: 0.3422094259 | S37: 0.3422094259 | T37: 0.3422094259 | U37: 0.3422094259 | V37: 0.3422094259 | W37: 0.3422094259 | X37: 0.3422094259 | Y37: 0.3422094259 | Z37: 0.3422094259 | AA37: 0.3422094259 | AB37: 0.3422094259 | AC37: 0.3422094259 | AD37: 0.3422094259 | AE37: 0.3422094259
A38: CA | B38: -0.05207375941 | C38: -0.07742760241 | D38: -0.09433445089 | E38: -0.1065961154 | F38: -0.1159698536 | G38: -0.1289133533 | H38: -0.1372601903 | I38: -0.1467364431 | J38: -0.1714524285 | K38: -0.2095945832 | L38: -0.2095945832 | M38: -0.2095945832 | N38: -0.2095945832 | O38: -0.2095945832 | P38: -0.2095945832 | Q38: -0.2095945832 | R38: -0.2095945832 | S38: -0.2095945832 | T38: -0.2095945832 | U38: -0.2095945832 | V38: -0.2095945832 | W38: -0.2095945832 | X38: -0.2095945832 | Y38: -0.2095945832 | Z38: -0.2095945832 | AA38: -0.2095945832 | AB38: -0.2095945832 | AC38: -0.2095945832 | AD38: -0.2095945832 | AE38: -0.2095945832
A39: CL | B39: 0.4972136059 | C39: 0.5402135294 | D39: 0.5154279984 | E39: 0.4995428866 | F39: 0.4511722604 | G39: 0.4272396502 | H39: 0.3994060657 | I39: 0.425460521 | J39: 0.4515149763 | K39: 0.3824816322 | L39: 0.3824816322 | M39: 0.3824816322 | N39: 0.3824816322 | O39: 0.3824816322 | P39: 0.3824816322 | Q39: 0.3824816322 | R39: 0.3824816322 | S39: 0.3824816322 | T39: 0.3824816322 | U39: 0.3824816322 | V39: 0.3824816322 | W39: 0.3824816322 | X39: 0.3824816322 | Y39: 0.3824816322 | Z39: 0.3824816322 | AA39: 0.3824816322 | AB39: 0.3824816322 | AC39: 0.3824816322 | AD39: 0.3824816322 | AE39: 0.3824816322
A40: CN | B40: -0.07162995861 | C40: -0.01504595429 | D40: 0.03438605099 | E40: 0.05956946082 | F40: 0.06459009216 | G40: 0.07833327567 | H40: 0.1017504054 | I40: 0.2095782035 | J40: 0.133507968 | K40: 0.1311748308 | L40: 0.1311748308 | M40: 0.1311748308 | N40: 0.1311748308 | O40: 0.1311748308 | P40: 0.1311748308 | Q40: 0.1311748308 | R40: 0.1311748308 | S40: 0.1311748308 | T40: 0.1311748308 | U40: 0.1311748308 | V40: 0.1311748308 | W40: 0.1311748308 | X40: 0.1311748308 | Y40: 0.1311748308 | Z40: 0.1311748308 | AA40: 0.1311748308 | AB40: 0.1311748308 | AC40: 0.1311748308 | AD40: 0.1311748308 | AE40: 0.1311748308
A41: CO | B41: 0.3215373307 | C41: 0.522443018 | D41: 0.8355031189 | E41: 1.061121362 | F41: 1.114530419 | G41: 1.209261462 | H41: 1.264244543 | I41: 1.204875132 | J41: 1.126461138 | K41: 1.198573339 | L41: 1.198573339 | M41: 1.198573339 | N41: 1.198573339 | O41: 1.198573339 | P41: 1.198573339 | Q41: 1.198573339 | R41: 1.198573339 | S41: 1.198573339 | T41: 1.198573339 | U41: 1.198573339 | V41: 1.198573339 | W41: 1.198573339 | X41: 1.198573339 | Y41: 1.198573339 | Z41: 1.198573339 | AA41: 1.198573339 | AB41: 1.198573339 | AC41: 1.198573339 | AD41: 1.198573339 | AE41: 1.198573339
A42: HK | B42: -0.2853255305 | C42: -0.285809325 | D42: -0.3034456189 | E42: -0.3112373113 | F42: -0.3122743732 | G42: -0.3296088607 | H42: -0.3217390174 | I42: -0.3339052043 | J42: -0.3289861841 | K42: -0.3332965391 | L42: -0.3332965391 | M42: -0.3332965391 | N42: -0.3332965391 | O42: -0.3332965391 | P42: -0.3332965391 | Q42: -0.3332965391 | R42: -0.3332965391 | S42: -0.3332965391 | T42: -0.3332965391 | U42: -0.3332965391 | V42: -0.3332965391 | W42: -0.3332965391 | X42: -0.3332965391 | Y42: -0.3332965391 | Z42: -0.3332965391 | AA42: -0.3332965391 | AB42: -0.3332965391 | AC42: -0.3332965391 | AD42: -0.3332965391 | AE42: -0.3332965391
A43: IN | B43: 0.2732491191 | C43: 0.273262996 | D43: 0.273271845 | E43: 0.2732702361 | F43: 0.2732670183 | G43: 0.2732579682 | H43: 0.2732487169 | I43: 0.273245298 | J43: 0.2732432868 | K43: 0.2732426835 | L43: 0.2732426835 | M43: 0.2732426835 | N43: 0.2732426835 | O43: 0.2732426835 | P43: 0.2732426835 | Q43: 0.2732426835 | R43: 0.2732426835 | S43: 0.2732426835 | T43: 0.2732426835 | U43: 0.2732426835 | V43: 0.2732426835 | W43: 0.2732426835 | X43: 0.2732426835 | Y43: 0.2732426835 | Z43: 0.2732426835 | AA43: 0.2732426835 | AB43: 0.2732426835 | AC43: 0.2732426835 | AD43: 0.2732426835 | AE43: 0.2732426835
A44: JP | B44: -0.03760756554 | C44: -0.02723096513 | D44: -0.02463870386 | E44: -0.01685911649 | F44: -0.01175605114 | G44: -0.02437099818 | H44: -0.02128615768 | I44: 0.001469891848 | J44: 0.01501796581 | K44: 0.02008684391 | L44: 0.02008684391 | M44: 0.02008684391 | N44: 0.02008684391 | O44: 0.02008684391 | P44: 0.02008684391 | Q44: 0.02008684391 | R44: 0.02008684391 | S44: 0.02008684391 | T44: 0.02008684391 | U44: 0.02008684391 | V44: 0.02008684391 | W44: 0.02008684391 | X44: 0.02008684391 | Y44: 0.02008684391 | Z44: 0.02008684391 | AA44: 0.02008684391 | AB44: 0.02008684391 | AC44: 0.02008684391 | AD44: 0.02008684391 | AE44: 0.02008684391
A45: MY | B45: -0.1104375648 | C45: -0.05833509202 | D45: -0.05327263873 | E45: -0.09186722522 | F45: -0.1431888409 | G45: -0.1703087418 | H45: -0.2231647614 | I45: -0.2619743638 | J45: -0.3015346607 | K45: -0.3015346607 | L45: -0.3015346607 | M45: -0.3015346607 | N45: -0.3015346607 | O45: -0.3015346607 | P45: -0.3015346607 | Q45: -0.3015346607 | R45: -0.3015346607 | S45: -0.3015346607 | T45: -0.3015346607 | U45: -0.3015346607 | V45: -0.3015346607 | W45: -0.3015346607 | X45: -0.3015346607 | Y45: -0.3015346607 | Z45: -0.3015346607 | AA45: -0.3015346607 | AB45: -0.3015346607 | AC45: -0.3015346607 | AD45: -0.3015346607 | AE45: -0.3015346607
A46: MX | B46: 0.254428398 | C46: 0.25485197 | D46: 0.269520719 | E46: 0.2746212099 | F46: 0.2765756378 | G46: 0.2752942977 | H46: 0.273016377 | I46: 0.2719843027 | J46: 0.2707947518 | K46: 0.2702423202 | L46: 0.2702423202 | M46: 0.2702423202 | N46: 0.2702423202 | O46: 0.2702423202 | P46: 0.2702423202 | Q46: 0.2702423202 | R46: 0.2702423202 | S46: 0.2702423202 | T46: 0.2702423202 | U46: 0.2702423202 | V46: 0.2702423202 | W46: 0.2702423202 | X46: 0.2702423202 | Y46: 0.2702423202 | Z46: 0.2702423202 | AA46: 0.2702423202 | AB46: 0.2702423202 | AC46: 0.2702423202 | AD46: 0.2702423202 | AE46: 0.2702423202
A47: NZ | B47: -0.1396533888 | C47: -0.2047577096 | D47: -0.2356928708 | E47: -0.2448357361 | F47: -0.2556622053 | G47: -0.2932209805 | H47: -0.2746136238 | I47: -0.309385434 | J47: -0.320710492 | K47: -0.296672367 | L47: -0.296672367 | M47: -0.296672367 | N47: -0.296672367 | O47: -0.296672367 | P47: -0.296672367 | Q47: -0.296672367 | R47: -0.296672367 | S47: -0.296672367 | T47: -0.296672367 | U47: -0.296672367 | V47: -0.296672367 | W47: -0.296672367 | X47: -0.296672367 | Y47: -0.296672367 | Z47: -0.296672367 | AA47: -0.296672367 | AB47: -0.296672367 | AC47: -0.296672367 | AD47: -0.296672367 | AE47: -0.296672367
A48: SG | B48: -0.2042981442 | C48: -0.3036965588 | D48: -0.3114724052 | E48: -0.3005948852 | F48: -0.2642472323 | G48: -0.2209716876 | H48: -0.1956017691 | I48: -0.1707461146 | J48: -0.1229514179 | K48: -0.08687270571 | L48: -0.08687270571 | M48: -0.08687270571 | N48: -0.08687270571 | O48: -0.08687270571 | P48: -0.08687270571 | Q48: -0.08687270571 | R48: -0.08687270571 | S48: -0.08687270571 | T48: -0.08687270571 | U48: -0.08687270571 | V48: -0.08687270571 | W48: -0.08687270571 | X48: -0.08687270571 | Y48: -0.08687270571 | Z48: -0.08687270571 | AA48: -0.08687270571 | AB48: -0.08687270571 | AC48: -0.08687270571 | AD48: -0.08687270571 | AE48: -0.08687270571
A49: ZA | B49: 0.140817085 | C49: 0.2091355931 | D49: 0.2129456022 | E49: 0.194888316 | F49: 0.1721579804 | G49: 0.186803592 | H49: 0.2366930838 | I49: 0.2672711242 | J49: 0.2760318339 | K49: 0.3059080528 | L49: 0.3059080528 | M49: 0.3059080528 | N49: 0.3059080528 | O49: 0.3059080528 | P49: 0.3059080528 | Q49: 0.3059080528 | R49: 0.3059080528 | S49: 0.3059080528 | T49: 0.3059080528 | U49: 0.3059080528 | V49: 0.3059080528 | W49: 0.3059080528 | X49: 0.3059080528 | Y49: 0.3059080528 | Z49: 0.3059080528 | AA49: 0.3059080528 | AB49: 0.3059080528 | AC49: 0.3059080528 | AD49: 0.3059080528 | AE49: 0.3059080528
A50: KR | B50: 0.2798540524 | C50: 0.3424787724 | D50: 0.3457564206 | E50: 0.3989997588 | F50: 0.4308862392 | G50: 0.4368268261 | H50: 0.4427674129 | I50: 0.4427674129 | J50: 0.4427674129 | K50: 0.4427674129 | L50: 0.4427674129 | M50: 0.4427674129 | N50: 0.4427674129 | O50: 0.4427674129 | P50: 0.4427674129 | Q50: 0.4427674129 | R50: 0.4427674129 | S50: 0.4427674129 | T50: 0.4427674129 | U50: 0.4427674129 | V50: 0.4427674129 | W50: 0.4427674129 | X50: 0.4427674129 | Y50: 0.4427674129 | Z50: 0.4427674129 | AA50: 0.4427674129 | AB50: 0.4427674129 | AC50: 0.4427674129 | AD50: 0.4427674129 | AE50: 0.4427674129
A51: TW | B51: 0.12116414 | C51: 0.1211637336 | D51: 0.1211635304 | E51: 0.1211635304 | F51: 0.1211629207 | G51: 0.1211627175 | H51: 0.121162311 | I51: 0.1211614981 | J51: 0.121160482 | K51: 0.117138093 | L51: 0.117138093 | M51: 0.117138093 | N51: 0.117138093 | O51: 0.117138093 | P51: 0.117138093 | Q51: 0.117138093 | R51: 0.117138093 | S51: 0.117138093 | T51: 0.117138093 | U51: 0.117138093 | V51: 0.117138093 | W51: 0.117138093 | X51: 0.117138093 | Y51: 0.117138093 | Z51: 0.117138093 | AA51: 0.117138093 | AB51: 0.117138093 | AC51: 0.117138093 | AD51: 0.117138093 | AE51: 0.117138093
A52: TH | B52: 0.01129726789 | C52: -0.1180102316 | D52: -0.2142409101 | E52: -0.2661323591 | F52: -0.2538116458 | G52: -0.2359337708 | H52: -0.2180558958 | I52: -0.08836002027 | J52: -0.1129708327 | K52: -0.118948534 | L52: -0.118948534 | M52: -0.118948534 | N52: -0.118948534 | O52: -0.118948534 | P52: -0.118948534 | Q52: -0.118948534 | R52: -0.118948534 | S52: -0.118948534 | T52: -0.118948534 | U52: -0.118948534 | V52: -0.118948534 | W52: -0.118948534 | X52: -0.118948534 | Y52: -0.118948534 | Z52: -0.118948534 | AA52: -0.118948534 | AB52: -0.118948534 | AC52: -0.118948534 | AD52: -0.118948534 | AE52: -0.118948534
A53: TR | B53: 0 | C53: 0 | D53: 0 | E53: 0 | F53: 0 | G53: 0 | H53: 0 | I53: 0 | J53: 0 | K53: 0 | L53: 0 | M53: 0 | N53: 0 | O53: 0 | P53: 0 | Q53: 0 | R53: 0 | S53: 0 | T53: 0 | U53: 0 | V53: 0 | W53: 0 | X53: 0 | Y53: 0 | Z53: 0 | AA53: 0 | AB53: 0 | AC53: 0 | AD53: 0 | AE53: 0
A54: US | B54: -0.2332953559 | C54: -0.2488142758 | D54: -0.2786734795 | E54: -0.2746945022 | F54: -0.2851744432 | G54: -0.2581531641 | H54: -0.2298732032 | I54: -0.2185511253 | J54: -0.2142345232 | K54: -0.2483645471 | L54: -0.2483645471 | M54: -0.2483645471 | N54: -0.2483645471 | O54: -0.2483645471 | P54: -0.2483645471 | Q54: -0.2483645471 | R54: -0.2483645471 | S54: -0.2483645471 | T54: -0.2483645471 | U54: -0.2483645471 | V54: -0.2483645471 | W54: -0.2483645471 | X54: -0.2483645471 | Y54: -0.2483645471 | Z54: -0.2483645471 | AA54: -0.2483645471 | AB54: -0.2483645471 | AC54: -0.2483645471 | AD54: -0.2483645471 | AE54: -0.2483645471

Sheet LTAS_NYKREDIT
B1: LTAS | F1: 0,35*NYK LTAS i pct | G1: PD+CoD i pct
A2: 2019-03-31 | B2: 1.139845563 | F2: =0.35*B2 -> 0.398945947 | G2: ='PD Cod'!C17+'PD Cod'!AG17 -> 0.023576887
E4: Risk correction | F4: =MAX(F2,G2) -> 0.398945947

Sheet PD Cod
A1: 2019-03-31
B4: CORPORATE BONDS
AN6: Undertakings will calculate the FS other than PD as maximum of(CoD; and FS - PD)
C7: Financial. Probability of default(probability) | M7: Financial. Probability of default(percentages) | W7: Financial. Fundamental spread(percentages) | AG7: Financial. Cost of downgrade(percentages)
F9: Credit quality steps | P9: Credit quality steps | Z9: Credit quality steps | AJ9: Credit quality steps
B10: DKK | C10: 0 | D10: 1 | E10: 2 | F10: 3 | G10: 4 | H10: 5 | I10: 6 | L10: DKK | M10: 0 | N10: 1 | O10: 2 | P10: 3 | Q10: 4 | R10: 5 | S10: 6 | V10: DKK | W10: 0 | X10: 1 | Y10: 2 | Z10: 3 | AA10: 4 | AB10: 5 | AC10: 6 | AF10: DKK | AG10: 0 | AH10: 1 | AI10: 2 | AJ10: 3 | AK10: 4 | AL10: 5 | AM10: 6
A11: Maturity | B11: 1 | C11: 0 | D11: 0.0005 | E11: 0.0009 | F11: 0.0023 | G11: 0.0113 | H11: 0.0345 | I11: 0.1588 | K11: Maturity | L11: 1 | M11: 0 | N11: 0.03 | O11: 0.06 | P11: 0.16 | Q11: 0.79 | R11: 2.46 | S11: 12.44 | U11: Maturity | V11: 1 | W11: 0.06 | X11: 0.2 | Y11: 0.45 | Z11: 1.22 | AA11: 2.35 | AB11: 5.63 | AC11: 12.44 | AE11: Maturity | AF11: 1 | AG11: 0 | AH11: 0 | AI11: 0 | AJ11: 0 | AK11: 0 | AL11: 0 | AM11: 0
B12: 2 | C12: 0.00027338 | D12: 0.00106655 | E12: 0.00189825 | F12: 0.0051388 | G12: 0.02448778 | H12: 0.06896171 | I12: 0.25894079 | L12: 2 | M12: 0.01 | N12: 0.04 | O12: 0.07 | P12: 0.18 | Q12: 0.85 | R12: 2.43 | S12: 10.03 | V12: 2 | W12: 0.06 | X12: 0.2 | Y12: 0.45 | Z12: 1.22 | AA12: 2.35 | AB12: 5.63 | AC12: 10.03 | AF12: 2 | AG12: 0 | AH12: 0.01 | AI12: 0.01 | AJ12: 0.01 | AK12: 0 | AL12: 0 | AM12: 0
B13: 3 | C13: 0.000728118958 | D13: 0.001699359039 | E13: 0.00300821751 | F13: 0.008457167411 | G13: 0.03877723355 | H13: 0.1019683891 | I13: 0.3253810344 | L13: 3 | M13: 0.02 | N13: 0.04 | O13: 0.07 | P13: 0.2 | Q13: 0.9 | R13: 2.37 | S13: 8.18 | V13: 3 | W13: 0.07 | X13: 0.22 | Y13: 0.46 | Z13: 1.14 | AA13: 2.32 | AB13: 5.59 | AC13: 8.18 | AF13: 3 | AG13: 0 | AH13: 0.01 | AI13: 0.03 | AJ13: 0.02 | AK13: 0 | AL13: 0 | AM13: 0
B14: 4 | C14: 0.001310953592 | D14: 0.002400549416 | E14: 0.004240400279 | F14: 0.01220319427 | G14: 0.05363190515 | H14: 0.1329282293 | I14: 0.3720985244 | L14: 4 | M14: 0.02 | N14: 0.04 | O14: 0.07 | P14: 0.21 | Q14: 0.92 | R14: 2.28 | S14: 6.78 | V14: 4 | W14: 0.08 | X14: 0.25 | Y14: 0.49 | Z14: 1.16 | AA14: 2.3 | AB14: 5.58 | AC14: 6.78 | AF14: 4 | AG14: 0.01 | AH14: 0.02 | AI14: 0.04 | AJ14: 0.03 | AK14: 0 | AL14: 0 | AM14: 0
B15: 5 | C15: 0.001990827593 | D15: 0.003173591677 | E15: 0.0056027167 | F15: 0.01632852425 | G15: 0.06868400607 | H15: 0.1616723818 | I15: 0.4069708708 | L15: 5 | M15: 0.03 | N15: 0.04 | O15: 0.08 | P15: 0.22 | Q15: 0.93 | R15: 2.19 | S15: 5.69 | V15: 5 | W15: 0.1 | X15: 0.28 | Y15: 0.54 | Z15: 1.19 | AA15: 2.3 | AB15: 5.58 | AC15: 5.69 | AF15: 5 | AG15: 0.01 | AH15: 0.02 | AI15: 0.05 | AJ15: 0.04 | AK15: 0.03 | AL15: 0 | AM15: 0
B16: 6 | C16: 0.00274961676 | D16: 0.004022633679 | E16: 0.007100797167 | F16: 0.02078713684 | G16: 0.08368174505 | H16: 0.1882395583 | I16: 0.4344783745 | L16: 6 | M16: 0.03 | N16: 0.05 | O16: 0.08 | P16: 0.23 | Q16: 0.94 | R16: 2.09 | S16: 4.85 | V16: 6 | W16: 0.11 | X16: 0.3 | Y16: 0.58 | Z16: 1.24 | AA16: 2.3 | AB16: 5.58 | AC16: 5.58 | AF16: 6 | AG16: 0.02 | AH16: 0.03 | AI16: 0.06 | AJ16: 0.05 | AK16: 0.05 | AL16: 0 | AM16: 0
B17: 7 | C17: 0.003576886998 | D17: 0.004952064079 | E17: 0.008738237618 | F17: 0.02553523103 | G17: 0.098454271 | H17: 0.2127622033 | I17: 0.4572025547 | L17: 7 | M17: 0.03 | N17: 0.05 | O17: 0.09 | P17: 0.25 | Q17: 0.93 | R17: 1.98 | S17: 4.19 | V17: 7 | W17: 0.12 | X17: 0.32 | Y17: 0.6 | Z17: 1.27 | AA17: 2.3 | AB17: 5.58 | AC17: 5.58 | AF17: 7 | AG17: 0.02 | AH17: 0.04 | AI17: 0.07 | AJ17: 0.06 | AK17: 0.08 | AL17: 0 | AM17: 0
B18: 8 | C18: 0.00446689275 | D18: 0.005966220888 | E18: 0.01051683883 | F18: 0.03053149323 | G18: 0.1128878315 | H18: 0.2354076373 | I18: 0.4766582921 | L18: 8 | M18: 0.04 | N18: 0.05 | O18: 0.09 | P18: 0.25 | Q18: 0.92 | R18: 1.88 | S18: 3.65 | V18: 8 | W18: 0.12 | X18: 0.33 | Y18: 0.59 | Z18: 1.25 | AA18: 2.3 | AB18: 5.58 | AC18: 5.58 | AF18: 8 | AG18: 0.03 | AH18: 0.04 | AI18: 0.09 | AJ18: 0.07 | AK18: 0.12 | AL18: 0 | AM18: 0
B19: 9 | C19: 0.005416824815 | D19: 0.007069194175 | E19: 0.01243683767 | F19: 0.03573742067 | G19: 0.126909248 | H19: 0.2563486951 | I19: 0.4937569628 | L19: 9 | M19: 0.04 | N19: 0.05 | O19: 0.09 | P19: 0.26 | Q19: 0.91 | R19: 1.78 | S19: 3.21 | V19: 9 | W19: 0.12 | X19: 0.34 | Y19: 0.59 | Z19: 1.24 | AA19: 2.3 | AB19: 5.58 | AC19: 5.58 | AF19: 9 | AG19: 0.03 | AH19: 0.05 | AI19: 0.1 | AJ19: 0.09 | AK19: 0.15 | AL19: 0 | AM19: 0
B20: 10 | C20: 0.006425759364 | D20: 0.008264692927 | E20: 0.01449712949 | F20: 0.04111756694 | G20: 0.1404742777 | H20: 0.2757499904 | I20: 0.5090650075 | L20: 10 | M20: 0.04 | N20: 0.06 | O20: 0.1 | P20: 0.27 | Q20: 0.89 | R20: 1.69 | S20: 2.85 | V20: 10 | W20: 0.13 | X20: 0.35 | Y20: 0.59 | Z20: 1.24 | AA20: 2.3 | AB20: 5.58 | AC20: 5.58 | AF20: 10 | AG20: 0.04 | AH20: 0.05 | AI20: 0.11 | AJ20: 0.1 | AK20: 0.19 | AL20: 0 | AM20: 0
B21: 11 | C21: 0.007494004566 | D21: 0.009555957709 | E21: 0.01669547853 | F21: 0.04663967121 | G21: 0.1535593113 | H21: 0.293762295 | I21: 0.5229489288 | L21: 11 | M21: 0.04 | N21: 0.06 | O21: 0.1 | P21: 0.27 | Q21: 0.87 | R21: 1.59 | S21: 2.54 | V21: 11 | W21: 0.13 | X21: 0.36 | Y21: 0.6 | Z21: 1.24 | AA21: 2.3 | AB21: 5.58 | AC21: 5.58 | AF21: 11 | AG21: 0.04 | AH21: 0.06 | AI21: 0.12 | AJ21: 0.11 | AK21: 0.22 | AL21: 0 | AM21: 0
B22: 12 | C22: 0.008622676436 | D22: 0.01094570716 | E22: 0.01902871348 | F22: 0.05227467557 | G22: 0.1661553924 | H22: 0.3105210026 | I22: 0.5356571016 | L22: 12 | M22: 0.04 | N22: 0.06 | O22: 0.11 | P22: 0.28 | Q22: 0.85 | R22: 1.51 | S22: 2.29 | V22: 12 | W22: 0.14 | X22: 0.37 | Y22: 0.6 | Z22: 1.24 | AA22: 2.3 | AB22: 5.58 | AC22: 5.58 | AF22: 12 | AG22: 0.05 | AH22: 0.06 | AI22: 0.13 | AJ22: 0.13 | AK22: 0.26 | AL22: 0 | AM22: 0
B23: 13 | C23: 0.009813410197 | D23: 0.01243611009 | E23: 0.02149290582 | F23: 0.05799665081 | G23: 0.1782638794 | H23: 0.3261465372 | I23: 0.5473663265 | L23: 13 | M23: 0.05 | N23: 0.06 | O23: 0.11 | P23: 0.28 | Q23: 0.83 | R23: 1.42 | S23: 2.06 | V23: 13 | W23: 0.14 | X23: 0.37 | Y23: 0.6 | Z23: 1.24 | AA23: 2.3 | AB23: 5.58 | AC23: 5.58 | AF23: 13 | AG23: 0.06 | AH23: 0.07 | AI23: 0.14 | AJ23: 0.14 | AK23: 0.29 | AL23: 0 | AM23: 0
B24: 14 | C24: 0.01106815469 | D24: 0.01402877723 | E24: 0.02408353001 | F24: 0.06378265504 | G24: 0.1898932856 | H24: 0.3407455938 | I24: 0.5582086301 | L24: 14 | M24: 0.05 | N24: 0.07 | O24: 0.11 | P24: 0.29 | Q24: 0.81 | R24: 1.35 | S24: 1.87 | V24: 14 | W24: 0.14 | X24: 0.38 | Y24: 0.6 | Z24: 1.24 | AA24: 2.3 | AB24: 5.58 | AC24: 5.58 | AF24: 14 | AG24: 0.06 | AH24: 0.07 | AI24: 0.15 | AJ24: 0.15 | AK24: 0.33 | AL24: 0 | AM24: 0
B25: 15 | C25: 0.01238902015 | D25: 0.01572476786 | E25: 0.02679560505 | F25: 0.06961254751 | G25: 0.2010569729 | H25: 0.3544126478 | I25: 0.5682869399 | L25: 15 | M25: 0.05 | N25: 0.07 | O25: 0.12 | P25: 0.29 | Q25: 0.78 | R25: 1.27 | S25: 1.7 | V25: 15 | W25: 0.14 | X25: 0.38 | Y25: 0.6 | Z25: 1.24 | AA25: 2.3 | AB25: 5.58 | AC25: 5.58 | AF25: 15 | AG25: 0.07 | AH25: 0.08 | AI25: 0.16 | AJ25: 0.17 | AK25: 0.36 | AL25: 0.03 | AM25: 0
B26: 16 | C26: 0.01377816233 | D26: 0.01752460789 | E26: 0.02962381804 | F26: 0.07546877615 | G26: 0.2117714688 | H26: 0.367231463 | I26: 0.5776844417 | L26: 16 | M26: 0.05 | N26: 0.07 | O26: 0.12 | P26: 0.29 | Q26: 0.76 | R26: 1.2 | S26: 1.55 | V26: 16 | W26: 0.14 | X26: 0.38 | Y26: 0.6 | Z26: 1.24 | AA26: 2.3 | AB26: 5.58 | AC26: 5.58 | AF26: 16 | AG26: 0.07 | AH26: 0.08 | AI26: 0.17 | AJ26: 0.18 | AK26: 0.39 | AL26: 0.06 | AM26: 0
B27: 17 | C27: 0.01523769285 | D27: 0.01942831624 | E27: 0.03256263054 | F27: 0.08133615313 | G27: 0.2220552428 | H27: 0.3792764794 | I27: 0.5864703158 | L27: 17 | M27: 0.05 | N27: 0.08 | O27: 0.12 | P27: 0.29 | Q27: 0.73 | R27: 1.14 | S27: 1.42 | V27: 17 | W27: 0.14 | X27: 0.38 | Y27: 0.6 | Z27: 1.24 | AA27: 2.3 | AB27: 5.58 | AC27: 5.58 | AF27: 17 | AG27: 0.08 | AH27: 0.09 | AI27: 0.18 | AJ27: 0.2 | AK27: 0.42 | AL27: 0.09 | AM27: 0.01
B28: 18 | C28: 0.01676960944 | D28: 0.0214354372 | E28: 0.03560636909 | F28: 0.0872016289 | G28: 0.2319278192 | H28: 0.3906140402 | I28: 0.5947033667 | L28: 18 | M28: 0.06 | N28: 0.08 | O28: 0.13 | P28: 0.29 | Q28: 0.71 | R28: 1.07 | S28: 1.3 | V28: 18 | W28: 0.14 | X28: 0.38 | Y28: 0.6 | Z28: 1.24 | AA28: 2.3 | AB28: 5.58 | AC28: 5.58 | AF28: 18 | AG28: 0.08 | AH28: 0.09 | AI28: 0.19 | AJ28: 0.21 | AK28: 0.45 | AL28: 0.11 | AM28: 0.03
B29: 19 | C29: 0.01837574225 | D29: 0.02354507683 | E29: 0.03874930131 | F29: 0.09305407221 | G29: 0.2414091407 | H29: 0.4013034529 | I29: 0.602434407 | L29: 19 | M29: 0.06 | N29: 0.08 | O29: 0.13 | P29: 0.29 | Q29: 0.68 | R29: 1.02 | S29: 1.2 | V29: 19 | W29: 0.15 | X29: 0.38 | Y29: 0.6 | Z29: 1.24 | AA29: 2.3 | AB29: 5.58 | AC29: 5.58 | AF29: 19 | AG29: 0.09 | AH29: 0.1 | AI29: 0.2 | AJ29: 0.23 | AK29: 0.48 | AL29: 0.14 | AM29: 0.04
B30: 20 | C30: 0.02005771317 | D30: 0.02575594169 | E30: 0.04198569906 | F30: 0.09888406077 | G30: 0.2505191167 | H30: 0.4113978979 | I30: 0.6097078863 | L30: 20 | M30: 0.06 | N30: 0.08 | O30: 0.13 | P30: 0.29 | Q30: 0.66 | R30: 0.96 | S30: 1.11 | V30: 20 | W30: 0.16 | X30: 0.38 | Y30: 0.6 | Z30: 1.24 | AA30: 2.3 | AB30: 5.58 | AC30: 5.58 | AF30: 20 | AG30: 0.1 | AH30: 0.1 | AI30: 0.21 | AJ30: 0.24 | AK30: 0.51 | AL30: 0.16 | AM30: 0.06
B31: 21 | C31: 0.02181690608 | D31: 0.02806637877 | E31: 0.04530989015 | F31: 0.1046836856 | G31: 0.2592773079 | H31: 0.4209452037 | I31: 0.6165630503 | L31: 21 | M31: 0.06 | N31: 0.09 | O31: 0.13 | P31: 0.29 | Q31: 0.64 | R31: 0.91 | S31: 1.02 | V31: 21 | W31: 0.16 | X31: 0.38 | Y31: 0.6 | Z31: 1.24 | AA31: 2.3 | AB31: 5.58 | AC31: 5.58 | AF31: 21 | AG31: 0.1 | AH31: 0.11 | AI31: 0.22 | AJ31: 0.26 | AK31: 0.53 | AL31: 0.18 | AM31: 0.07
B32: 22 | C32: 0.02365444644 | D32: 0.03047441551 | E32: 0.04871630008 | F32: 0.1104463708 | G32: 0.2677027114 | H32: 0.429988506 | I32: 0.6230347985 | L32: 22 | M32: 0.06 | N32: 0.09 | O32: 0.14 | P32: 0.28 | Q32: 0.62 | R32: 0.86 | S32: 0.95 | V32: 22 | W32: 0.17 | X32: 0.38 | Y32: 0.6 | Z32: 1.24 | AA32: 2.3 | AB32: 5.58 | AC32: 5.58 | AF32: 22 | AG32: 0.11 | AH32: 0.12 | AI32: 0.23 | AJ32: 0.27 | AK32: 0.56 | AL32: 0.2 | AM32: 0.09
B33: 23 | C33: 0.02557118866 | D33: 0.03297779906 | E33: 0.05219948507 | F33: 0.1161667087 | G33: 0.2758136205 | H33: 0.4385668108 | I33: 0.6291543402 | L33: 23 | M33: 0.06 | N33: 0.09 | O33: 0.14 | P33: 0.28 | Q33: 0.59 | R33: 0.82 | S33: 0.88 | V33: 23 | W33: 0.17 | X33: 0.38 | Y33: 0.6 | Z33: 1.24 | AA33: 2.3 | AB33: 5.58 | AC33: 5.58 | AF33: 23 | AG33: 0.11 | AH33: 0.12 | AI33: 0.24 | AJ33: 0.29 | AK33: 0.58 | AL33: 0.23 | AM33: 0.1
B34: 24 | C34: 0.02756771014 | D34: 0.03557403436 | E34: 0.05575415769 | F34: 0.1218403116 | G34: 0.2836275382 | H34: 0.4467154761 | I34: 0.6349497118 | L34: 24 | M34: 0.07 | N34: 0.09 | O34: 0.14 | P34: 0.28 | Q34: 0.57 | R34: 0.78 | S34: 0.82 | V34: 24 | W34: 0.19 | X34: 0.38 | Y34: 0.6 | Z34: 1.24 | AA34: 2.3 | AB34: 5.58 | AC34: 5.58 | AF34: 24 | AG34: 0.12 | AH34: 0.13 | AI34: 0.26 | AJ34: 0.3 | AK34: 0.6 | AL34: 0.25 | AM34: 0.12
B35: 25 | C35: 0.02964431083 | D35: 0.03826042034 | E35: 0.0593752061 | F35: 0.1274636779 | G35: 0.2911611301 | H35: 0.4544666256 | I35: 0.6404461945 | L35: 25 | M35: 0.07 | N35: 0.1 | O35: 0.14 | P35: 0.28 | Q35: 0.55 | R35: 0.74 | S35: 0.76 | V35: 25 | W35: 0.19 | X35: 0.38 | Y35: 0.6 | Z35: 1.24 | AA35: 2.3 | AB35: 5.58 | AC35: 5.58 | AF35: 25 | AG35: 0.12 | AH35: 0.13 | AI35: 0.27 | AJ35: 0.32 | AK35: 0.62 | AL35: 0.26 | AM35: 0.13
B36: 26 | C36: 0.03180101735 | D36: 0.04103408425 | E36: 0.063057708 | F36: 0.1330340726 | G36: 0.298430206 | H36: 0.4618495054 | I36: 0.6456666581 | L36: 26 | M36: 0.07 | N36: 0.1 | O36: 0.14 | P36: 0.28 | Q36: 0.53 | R36: 0.7 | S36: 0.71 | V36: 26 | W36: 0.2 | X36: 0.38 | Y36: 0.6 | Z36: 1.24 | AA36: 2.3 | AB36: 5.58 | AC36: 5.58 | AF36: 26 | AG36: 0.13 | AH36: 0.14 | AI36: 0.28 | AJ36: 0.33 | AK36: 0.64 | AL36: 0.28 | AM36: 0.14
B37: 27 | C37: 0.03403759097 | D37: 0.04389201353 | E37: 0.06679694003 | F37: 0.138549422 | G37: 0.3054497211 | H37: 0.4688907933 | I37: 0.6506318482 | L37: 27 | M37: 0.07 | N37: 0.1 | O37: 0.15 | P37: 0.27 | Q37: 0.52 | R37: 0.66 | S37: 0.66 | V37: 27 | W37: 0.2 | X37: 0.38 | Y37: 0.6 | Z37: 1.24 | AA37: 2.3 | AB37: 5.58 | AC37: 5.58 | AF37: 27 | AG37: 0.13 | AH37: 0.14 | AI37: 0.29 | AJ37: 0.35 | AK37: 0.66 | AL37: 0.3 | AM37: 0.15
B38: 28 | C38: 0.03635353846 | D38: 0.04683108544 | E38: 0.07058838348 | F38: 0.1440082196 | G38: 0.3122337914 | H38: 0.4756148679 | I38: 0.6553606296 | L38: 28 | M38: 0.07 | N38: 0.1 | O38: 0.15 | P38: 0.27 | Q38: 0.5 | R38: 0.63 | S38: 0.62 | V38: 28 | W38: 0.21 | X38: 0.38 | Y38: 0.6 | Z38: 1.24 | AA38: 2.3 | AB38: 5.58 | AC38: 5.58 | AF38: 28 | AG38: 0.14 | AH38: 0.15 | AI38: 0.3 | AJ38: 0.36 | AK38: 0.68 | AL38: 0.31 | AM38: 0.16
B39: 29 | C39: 0.03874812539 | D39: 0.0498480942 | E39: 0.0744277269 | F39: 0.1494094436 | G39: 0.3187957187 | H39: 0.4820440441 | I39: 0.6598701941 | L39: 29 | M39: 0.08 | N39: 0.1 | O39: 0.15 | P39: 0.27 | Q39: 0.48 | R39: 0.6 | S39: 0.58 | V39: 29 | W39: 0.22 | X39: 0.38 | Y39: 0.6 | Z39: 1.24 | AA39: 2.3 | AB39: 5.58 | AC39: 5.58 | AF39: 29 | AG39: 0.14 | AH39: 0.15 | AI39: 0.31 | AJ39: 0.38 | AK39: 0.69 | AL39: 0.33 | AM39: 0.17
B40: 30 | C40: 0.04122039112 | D40: 0.05293977572 | E40: 0.07831086627 | F40: 0.1547524845 | G40: 0.3251480222 | H40: 0.4881987787 | I40: 0.66417624 | L40: 30 | M40: 0.08 | N40: 0.11 | O40: 0.15 | P40: 0.26 | Q40: 0.46 | R40: 0.57 | S40: 0.54 | V40: 30 | W40: 0.23 | X40: 0.38 | Y40: 0.6 | Z40: 1.24 | AA40: 2.3 | AB40: 5.58 | AC40: 5.58 | AF40: 30 | AG40: 0.15 | AH40: 0.16 | AI40: 0.32 | AJ40: 0.39 | AK40: 0.71 | AL40: 0.34 | AM40: 0.18
AN46: Undertakings will calculate the FS other than PD as maximum of(CoD; and FS - PD)
C47: Non-financial. Probability of default(probability) | M47: Non-financial. Probability of default(percentages) | W47: Non-financial. Fundamental spread(percentages) | AG47: Non-financial. Cost of downgrade(percentages)
F49: Credit quality steps | P49: Credit quality steps | Z49: Credit quality steps | AJ49: Credit quality steps
B50: DKK | C50: 0 | D50: 1 | E50: 2 | F50: 3 | G50: 4 | H50: 5 | I50: 6 | L50: DKK | M50: 0 | N50: 1 | O50: 2 | P50: 3 | Q50: 4 | R50: 5 | S50: 6 | V50: DKK | W50: 0 | X50: 1 | Y50: 2 | Z50: 3 | AA50: 4 | AB50: 5 | AC50: 6 | AF50: DKK | AG50: 0 | AH50: 1 | AI50: 2 | AJ50: 3 | AK50: 4 | AL50: 5 | AM50: 6
A51: Maturity | B51: 1 | C51: 0 | D51: 0 | E51: 0.0005 | F51: 0.0016 | G51: 0.0069 | H51: 0.0415 | I51: 0.3353 | K51: Maturity | L51: 1 | M51: 0 | N51: 0 | O51: 0.03 | P51: 0.11 | Q51: 0.48 | R51: 2.98 | S51: 30.5 | U51: Maturity | V51: 1 | W51: 0.01 | X51: 0.14 | Y51: 0.21 | Z51: 0.44 | AA51: 1.65 | AB51: 2.98 | AC51: 30.5 | AE51: Maturity | AF51: 1 | AG51: 0 | AH51: 0 | AI51: 0 | AJ51: 0 | AK51: 0 | AL51: 0 | AM51: 0
B52: 2 | C52: 3.45e-06 | D52: 5.484e-05 | E52: 0.00114907 | F52: 0.00369943 | G52: 0.0171961 | H52: 0.09354453 | I52: 0.50030233 | L52: 2 | M52: 0 | N52: 0 | O52: 0.04 | P52: 0.13 | Q52: 0.6 | R52: 3.36 | S52: 22.63 | V52: 2 | W52: 0.01 | X52: 0.14 | Y52: 0.21 | Z52: 0.44 | AA52: 1.65 | AB52: 3.36 | AC52: 22.63 | AF52: 2 | AG52: 0 | AH52: 0.01 | AI52: 0.02 | AJ52: 0.01 | AK52: 0 | AL52: 0 | AM52: 0
B53: 3 | C53: 1.5620148e-05 | D53: 0.000176128995 | E53: 0.001967754431 | F53: 0.006325190823 | G53: 0.03061245885 | H53: 0.1463426169 | I53: 0.587538629 | L53: 3 | M53: 0 | N53: 0 | O53: 0.05 | P53: 0.15 | Q53: 0.71 | R53: 3.49 | S53: 17.04 | V53: 3 | W53: 0.01 | X53: 0.15 | Y53: 0.23 | Z53: 0.48 | AA53: 1.59 | AB53: 3.49 | AC53: 17.04 | AF53: 3 | AG53: 0.01 | AH53: 0.01 | AI53: 0.04 | AJ53: 0.02 | AK53: 0 | AL53: 0 | AM53: 0
B54: 4 | C54: 4.241210885e-05 | D54: 0.0003762384824 | E54: 0.002976703233 | F54: 0.009513174335 | G54: 0.0465266602 | H54: 0.1961430182 | I54: 0.6384994701 | L54: 4 | M54: 0 | N54: 0.01 | O54: 0.05 | P54: 0.16 | Q54: 0.8 | R54: 3.48 | S54: 13.15 | V54: 4 | W54: 0.01 | X54: 0.16 | Y54: 0.26 | Z54: 0.52 | AA54: 1.57 | AB54: 3.48 | AC54: 13.15 | AF54: 4 | AG54: 0.01 | AH54: 0.02 | AI54: 0.06 | AJ54: 0.03 | AK54: 0 | AL54: 0 | AM54: 0
B55: 5 | C55: 9.036630661e-05 | D55: 0.0006681874781 | E55: 0.00419685034 | F55: 0.01328622737 | G55: 0.06427694769 | H55: 0.2417742412 | I55: 0.671908084 | L55: 5 | M55: 0 | N55: 0.01 | O55: 0.06 | P55: 0.18 | Q55: 0.87 | R55: 3.39 | S55: 10.41 | V55: 5 | W55: 0.01 | X55: 0.18 | Y55: 0.3 | Z55: 0.54 | AA55: 1.57 | AB55: 3.39 | AC55: 10.41 | AF55: 5 | AG55: 0.01 | AH55: 0.03 | AI55: 0.08 | AJ55: 0.04 | AK55: 0 | AL55: 0 | AM55: 0
B56: 6 | C56: 0.0001666602037 | D56: 0.001065520775 | E56: 0.005648525528 | F56: 0.01764930478 | G56: 0.08327430272 | H56: 0.2831257285 | I56: 0.6963109022 | L56: 6 | M56: 0 | N56: 0.01 | O56: 0.06 | P56: 0.2 | Q56: 0.93 | R56: 3.26 | S56: 8.45 | V56: 6 | W56: 0.03 | X56: 0.21 | Y56: 0.32 | Z56: 0.57 | AA56: 1.57 | AB56: 3.26 | AC56: 8.45 | AF56: 6 | AG56: 0.02 | AH56: 0.03 | AI56: 0.1 | AJ56: 0.05 | AK56: 0 | AL56: 0 | AM56: 0
B57: 7 | C57: 0.0002790905018 | D57: 0.001582127377 | E57: 0.007350451105 | F57: 0.02259107727 | G57: 0.1030328521 | H57: 0.3204885954 | I57: 0.7156883011 | L57: 7 | M57: 0 | N57: 0.02 | O57: 0.07 | P57: 0.22 | Q57: 0.98 | R57: 3.1 | S57: 6.99 | V57: 7 | W57: 0.04 | X57: 0.23 | Y57: 0.34 | Z57: 0.6 | AA57: 1.57 | AB57: 3.1 | AC57: 6.99 | AF57: 7 | AG57: 0.02 | AH57: 0.04 | AI57: 0.12 | AJ57: 0.06 | AK57: 0 | AL57: 0 | AM57: 0
B58: 8 | C58: 0.0004360349506 | D58: 0.002232007069 | E58: 0.009318949022 | F58: 0.02808748469 | G58: 0.123168025 | H58: 0.354275529 | I58: 0.7319581798 | L58: 8 | M58: 0 | N58: 0.02 | O58: 0.08 | P58: 0.23 | Q58: 1.01 | R58: 2.94 | S58: 5.87 | V58: 8 | W58: 0.04 | X58: 0.24 | Y58: 0.35 | Z58: 0.62 | AA58: 1.57 | AB58: 2.94 | AC58: 5.87 | AF58: 8 | AG58: 0.02 | AH58: 0.04 | AI58: 0.14 | AJ58: 0.07 | AK58: 0 | AL58: 0 | AM58: 0
B59: 9 | C59: 0.0006463927435 | D59: 0.003029009816 | E59: 0.01156742891 | F59: 0.03410543754 | G59: 0.1433835973 | H59: 0.38490678 | I59: 0.7460956914 | L59: 9 | M59: 0 | N59: 0.02 | O59: 0.09 | P59: 0.25 | Q59: 1.03 | R59: 2.77 | S59: 5 | V59: 9 | W59: 0.05 | X59: 0.25 | Y59: 0.37 | Z59: 0.65 | AA59: 1.57 | AB59: 2.77 | AC59: 5 | AF59: 9 | AG59: 0.02 | AH59: 0.05 | AI59: 0.16 | AJ59: 0.07 | AK59: 0 | AL59: 0 | AM59: 0
B60: 10 | C60: 0.0009195051101 | D60: 0.003986572605 | E60: 0.01410613227 | F60: 0.04060603087 | G60: 0.1634563532 | H60: 0.4127679741 | I60: 0.7586361327 | L60: 10 | M60: 0.01 | N60: 0.03 | O60: 0.09 | P60: 0.26 | Q60: 1.05 | R60: 2.61 | S60: 4.31 | V60: 10 | W60: 0.05 | X60: 0.26 | Y60: 0.39 | Z60: 0.67 | AA60: 1.57 | AB60: 2.61 | AC60: 4.31 | AF60: 10 | AG60: 0.03 | AH60: 0.05 | AI60: 0.18 | AJ60: 0.08 | AK60: 0 | AL60: 0 | AM60: 0
B61: 11 | C61: 0.00126505944 | D61: 0.005117472758 | E61: 0.01694207979 | F61: 0.04754711547 | G61: 0.1832217155 | H61: 0.4381982181 | I61: 0.7699024716 | L61: 11 | M61: 0.01 | N61: 0.03 | O61: 0.1 | P61: 0.28 | Q61: 1.05 | R61: 2.45 | S61: 3.75 | V61: 11 | W61: 0.05 | X61: 0.26 | Y61: 0.39 | Z61: 0.68 | AA61: 1.57 | AB61: 2.5 | AC61: 3.75 | AF61: 11 | AG61: 0.03 | AH61: 0.06 | AI61: 0.19 | AJ61: 0.09 | AK61: 0 | AL61: 0 | AM61: 0
B62: 12 | C62: 0.001692981185 | D62: 0.006433610454 | E62: 0.02007916669 | F62: 0.05488525767 | G62: 0.2025614106 | H62: 0.4614903571 | I62: 0.7801096238 | L62: 12 | M62: 0.01 | N62: 0.04 | O62: 0.11 | P62: 0.29 | Q62: 1.05 | R62: 2.3 | S62: 3.28 | V62: 12 | W62: 0.05 | X62: 0.26 | Y62: 0.39 | Z62: 0.68 | AA62: 1.57 | AB62: 2.5 | AC62: 3.28 | AF62: 12 | AG62: 0.03 | AH62: 0.06 | AI62: 0.21 | AJ62: 0.1 | AK62: 0 | AL62: 0 | AM62: 0
B63: 13 | C63: 0.002213318095 | D63: 0.007945827653 | E63: 0.02351835889 | F63: 0.06257717905 | G63: 0.2213933102 | H63: 0.4828955764 | I63: 0.7894133022 | L63: 13 | M63: 0.01 | N63: 0.04 | O63: 0.12 | P63: 0.3 | Q63: 1.04 | R63: 2.15 | S63: 2.89 | V63: 13 | W63: 0.05 | X63: 0.26 | Y63: 0.39 | Z63: 0.68 | AA63: 1.57 | AB63: 2.5 | AC63: 2.89 | AF63: 13 | AG63: 0.03 | AH63: 0.06 | AI63: 0.23 | AJ63: 0.11 | AK63: 0.02 | AL63: 0 | AM63: 0
B64: 14 | C64: 0.002836121169 | D64: 0.009663766381 | E64: 0.02725795194 | F64: 0.0705807776 | G64: 0.239663243 | H64: 0.5026290831 | I64: 0.7979337333 | L64: 14 | M64: 0.01 | N64: 0.05 | O64: 0.12 | P64: 0.31 | Q64: 1.03 | R64: 2.02 | S64: 2.56 | V64: 14 | W64: 0.05 | X64: 0.26 | Y64: 0.39 | Z64: 0.68 | AA64: 1.57 | AB64: 2.5 | AC64: 2.56 | AF64: 14 | AG64: 0.03 | AH64: 0.07 | AI64: 0.25 | AJ64: 0.13 | AK64: 0.06 | AL64: 0 | AM64: 0
B65: 15 | C65: 0.003571326354 | D65: 0.01159576626 | E65: 0.03129386436 | F65: 0.07885582221 | G65: 0.2573384775 | H65: 0.5208755873 | I65: 0.8057678113 | L65: 15 | M65: 0.02 | N65: 0.05 | O65: 0.13 | P65: 0.32 | Q65: 1.01 | R65: 1.89 | S65: 2.28 | V65: 15 | W65: 0.05 | X65: 0.26 | Y65: 0.39 | Z65: 0.68 | AA65: 1.57 | AB65: 2.5 | AC65: 2.5 | AF65: 15 | AG65: 0.03 | AH65: 0.07 | AI65: 0.26 | AJ65: 0.14 | AK65: 0.11 | AL65: 0 | AM65: 0
B66: 16 | C66: 0.004428640379 | D66: 0.01374879917 | E66: 0.03561994398 | F66: 0.08736439754 | G66: 0.2744025745 | H66: 0.5377941431 | I66: 0.8129958057 | L66: 16 | M66: 0.02 | N66: 0.06 | O66: 0.14 | P66: 0.33 | Q66: 0.99 | R66: 1.77 | S66: 2.04 | V66: 16 | W66: 0.05 | X66: 0.26 | Y66: 0.42 | Z66: 0.68 | AA66: 1.57 | AB66: 2.5 | AC66: 2.5 | AF66: 16 | AG66: 0.03 | AH66: 0.07 | AI66: 0.28 | AJ66: 0.15 | AK66: 0.15 | AL66: 0 | AM66: 0
B67: 17 | C67: 0.005417433554 | D67: 0.01612843755 | E67: 0.04022827281 | F67: 0.09607116168 | G67: 0.290851343 | H67: 0.5535222643 | I67: 0.8196854 | L67: 17 | M67: 0.02 | N67: 0.06 | O67: 0.15 | P67: 0.34 | Q67: 0.97 | R67: 1.66 | S67: 1.83 | V67: 17 | W67: 0.06 | X67: 0.26 | Y67: 0.45 | Z67: 0.68 | AA67: 1.57 | AB67: 2.5 | AC67: 2.5 | AF67: 17 | AG67: 0.04 | AH67: 0.08 | AI67: 0.3 | AJ67: 0.17 | AK67: 0.2 | AL67: 0 | AM67: 0
B68: 18 | C68: 0.006546641676 | D68: 0.01873885229 | E68: 0.04510945998 | F68: 0.1049434654 | G68: 0.306689677 | H68: 0.5681793616 | I68: 0.8258943484 | L68: 18 | M68: 0.02 | N68: 0.07 | O68: 0.15 | P68: 0.34 | Q68: 0.94 | R68: 1.55 | S68: 1.65 | V68: 18 | W68: 0.06 | X68: 0.26 | Y68: 0.46 | Z68: 0.68 | AA68: 1.57 | AB68: 2.5 | AC68: 2.5 | AF68: 18 | AG68: 0.04 | AH68: 0.08 | AI68: 0.31 | AJ68: 0.18 | AK68: 0.24 | AL68: 0 | AM68: 0
B69: 19 | C69: 0.007824678604 | D69: 0.02158283592 | E69: 0.0502529164 | F69: 0.1139513716 | G69: 0.3219290913 | H69: 0.5818695898 | I69: 0.8316723587 | L69: 19 | M69: 0.03 | N69: 0.07 | O69: 0.16 | P69: 0.35 | Q69: 0.92 | R69: 1.45 | S69: 1.49 | V69: 19 | W69: 0.07 | X69: 0.26 | Y69: 0.49 | Z69: 0.68 | AA69: 1.57 | AB69: 2.5 | AC69: 2.5 | AF69: 19 | AG69: 0.04 | AH69: 0.08 | AI69: 0.33 | AJ69: 0.2 | AK69: 0.29 | AL69: 0 | AM69: 0
B70: 20 | C70: 0.009259360502 | D70: 0.02466184647 | E70: 0.0556471071 | F70: 0.1230676033 | G70: 0.3365858097 | H70: 0.5946842014 | I70: 0.8370625046 | L70: 20 | M70: 0.03 | N70: 0.08 | O70: 0.17 | P70: 0.35 | Q70: 0.89 | R70: 1.36 | S70: 1.35 | V70: 20 | W70: 0.07 | X70: 0.26 | Y70: 0.52 | Z70: 0.68 | AA70: 1.57 | AB70: 2.5 | AC70: 2.5 | AF70: 20 | AG70: 0.04 | AH70: 0.09 | AI70: 0.35 | AJ70: 0.21 | AK70: 0.34 | AL70: 0 | AM70: 0
B71: 21 | C71: 0.01085784229 | D71: 0.02797606821 | E71: 0.06127977952 | F71: 0.1322674439 | G71: 0.3506792896 | H71: 0.6067034916 | I71: 0.8421023255 | L71: 21 | M71: 0.03 | N71: 0.08 | O71: 0.17 | P71: 0.36 | Q71: 0.86 | R71: 1.28 | S71: 1.23 | V71: 21 | W71: 0.07 | X71: 0.26 | Y71: 0.54 | Z71: 0.68 | AA71: 1.57 | AB71: 2.5 | AC71: 2.5 | AF71: 21 | AG71: 0.04 | AH71: 0.09 | AI71: 0.37 | AJ71: 0.23 | AK71: 0.38 | AL71: 0.03 | AM71: 0
B72: 22 | C72: 0.01262656641 | D72: 0.03152448512 | E72: 0.06713816691 | F72: 0.1415286053 | G72: 0.3642310878 | H72: 0.6179984092 | I72: 0.8468247049 | L72: 22 | M72: 0.04 | N72: 0.09 | O72: 0.18 | P72: 0.36 | Q72: 0.84 | R72: 1.2 | S72: 1.12 | V72: 22 | W72: 0.08 | X72: 0.26 | Y72: 0.56 | Z72: 0.68 | AA72: 1.57 | AB72: 2.5 | AC72: 2.5 | AF72: 22 | AG72: 0.04 | AH72: 0.09 | AI72: 0.38 | AJ72: 0.25 | AK72: 0.43 | AL72: 0.07 | AM72: 0
B73: 23 | C73: 0.0145712237 | D73: 0.0353049639 | E73: 0.07320916757 | F73: 0.150831077 | G73: 0.3772639972 | H73: 0.6286318936 | I73: 0.8512585821 | L73: 23 | M73: 0.04 | N73: 0.09 | O73: 0.19 | P73: 0.36 | Q73: 0.81 | R73: 1.13 | S73: 1.02 | V73: 23 | W73: 0.08 | X73: 0.26 | Y73: 0.59 | Z73: 0.68 | AA73: 1.57 | AB73: 2.5 | AC73: 2.5 | AF73: 23 | AG73: 0.04 | AH73: 0.1 | AI73: 0.4 | AJ73: 0.26 | AK73: 0.47 | AL73: 0.11 | AM73: 0.01
B74: 24 | C74: 0.01669672595 | D74: 0.03931434334 | E74: 0.07947950066 | F74: 0.1601569657 | G74: 0.3898013929 | H74: 0.6386599897 | I74: 0.8554295362 | L74: 24 | M74: 0.04 | N74: 0.1 | O74: 0.19 | P74: 0.36 | Q74: 0.78 | R74: 1.06 | S74: 0.93 | V74: 24 | W74: 0.08 | X74: 0.26 | Y74: 0.61 | Z74: 0.68 | AA74: 1.57 | AB74: 2.5 | AC74: 2.5 | AF74: 24 | AG74: 0.04 | AH74: 0.1 | AI74: 0.42 | AJ74: 0.28 | AK74: 0.51 | AL74: 0.15 | AM74: 0.02
B75: 25 | C75: 0.01900718934 | D75: 0.04354852746 | E75: 0.08593584035 | F75: 0.1694903314 | G75: 0.4018667435 | H75: 0.6481327798 | I75: 0.8593602678 | L75: 25 | M75: 0.05 | N75: 0.1 | O75: 0.2 | P75: 0.36 | Q75: 0.76 | R75: 0.99 | S75: 0.85 | V75: 25 | W75: 0.09 | X75: 0.26 | Y75: 0.64 | Z75: 0.68 | AA75: 1.57 | AB75: 2.5 | AC75: 2.5 | AF75: 25 | AG75: 0.04 | AH75: 0.1 | AI75: 0.44 | AJ75: 0.3 | AK75: 0.55 | AL75: 0.18 | AM75: 0.04
B76: 26 | C76: 0.0215059281 | D76: 0.04800258032 | E76: 0.09256492979 | F76: 0.1788170256 | G76: 0.4134832511 | H76: 0.6570951663 | I76: 0.8630709996 | L76: 26 | M76: 0.05 | N76: 0.11 | O76: 0.2 | P76: 0.36 | Q76: 0.73 | R76: 0.93 | S76: 0.78 | V76: 26 | W76: 0.09 | X76: 0.26 | Y76: 0.66 | Z76: 0.68 | AA76: 1.57 | AB76: 2.5 | AC76: 2.5 | AF76: 26 | AG76: 0.04 | AH76: 0.1 | AI76: 0.46 | AJ76: 0.32 | AK76: 0.59 | AL76: 0.21 | AM76: 0.05
B77: 27 | C77: 0.02419545734 | D77: 0.05267082061 | E77: 0.0993536768 | F77: 0.1881245347 | G77: 0.42467359 | H77: 0.6655875318 | I77: 0.8665798111 | L77: 27 | M77: 0.05 | N77: 0.11 | O77: 0.2 | P77: 0.36 | Q77: 0.71 | R77: 0.88 | S77: 0.72 | V77: 27 | W77: 0.09 | X77: 0.26 | Y77: 0.68 | Z77: 0.7 | AA77: 1.57 | AB77: 2.5 | AC77: 2.5 | AF77: 27 | AG77: 0.04 | AH77: 0.11 | AI77: 0.48 | AJ77: 0.34 | AK77: 0.63 | AL77: 0.24 | AM77: 0.06
B78: 28 | C78: 0.02707750421 | D78: 0.05754691441 | E78: 0.1062892332 | F78: 0.1974018303 | G78: 0.4354597241 | H78: 0.6736462987 | I78: 0.8699029191 | L78: 28 | M78: 0.06 | N78: 0.12 | O78: 0.21 | P78: 0.36 | Q78: 0.68 | R78: 0.83 | S78: 0.66 | V78: 28 | W78: 0.1 | X78: 0.26 | Y78: 0.71 | Z78: 0.72 | AA78: 1.57 | AB78: 2.5 | AC78: 2.5 | AF78: 28 | AG78: 0.04 | AH78: 0.11 | AI78: 0.5 | AJ78: 0.36 | AK78: 0.67 | AL78: 0.27 | AM78: 0.07
B79: 29 | C79: 0.03015302619 | D79: 0.06262396522 | E79: 0.1133590592 | F79: 0.2066392286 | G79: 0.4458627818 | H79: 0.6813044041 | I79: 0.8730549144 | L79: 29 | M79: 0.06 | N79: 0.12 | O79: 0.21 | P79: 0.36 | Q79: 0.66 | R79: 0.78 | S79: 0.61 | V79: 29 | W79: 0.1 | X79: 0.26 | Y79: 0.73 | Z79: 0.74 | AA79: 1.57 | AB79: 2.5 | AC79: 2.5 | AF79: 29 | AG79: 0.04 | AH79: 0.12 | AI79: 0.52 | AJ79: 0.38 | AK79: 0.7 | AL79: 0.29 | AM79: 0.08
B80: 30 | C80: 0.03342223575 | D80: 0.06789460005 | E80: 0.1205509753 | F80: 0.2158282586 | G80: 0.4559029782 | H80: 0.6885917073 | I80: 0.8760489627 | L80: 30 | M80: 0.07 | N80: 0.13 | O80: 0.22 | P80: 0.36 | Q80: 0.63 | R80: 0.74 | S80: 0.57 | V80: 30 | W80: 0.11 | X80: 0.26 | Y80: 0.76 | Z80: 0.77 | AA80: 1.57 | AB80: 2.5 | AC80: 2.5 | AF80: 30 | AG80: 0.04 | AH80: 0.12 | AI80: 0.54 | AJ80: 0.41 | AK80: 0.73 | AL80: 0.32 | AM80: 0.09
